Workbook

Sheet Title
A16: Repair Order Analysis
A17: And Summary | K17: =TODAY() -> 2017-09-05
A29: Simi Valley Buick GMC
A30: Dealership
A32: Josh Isbell
A33: Student
A35: N324 / 03
A36: Class and ID Number | H36: Computer Application by George A. Parker Management Instructor NADA Dealer Academy

Sheet Tech Pay
B1: Tech # | C1: Tech Pay Per FRH
B2: 710 | C2: 25
B3: 716 | C3: 21
B4: 717 | C4: 26
B5: 735 | C5: 32
B6: 743 | C6: 21
B7: 753 | C7: 15.5
B8: 769 | C8: 11.5
B9: 770 | C9: 21
B10: 773 | C10: 30
B11: 757 | C11: 14

Sheet Input Sheet
C2: Repair Order Analysis Input Sheet
G3: Competitive Labor | L3: Maintenance Labor | Q3: Repair Labor | V3: Total Cost of Labor | W3: One Item Repair Order
C4: RO Number | D4: Year | E4: Model | F4: Mileage | G4: Labor Sales | H4: Flat Rate Hours | I4: Technican Number | J4: Pay Per FRH | K4: Labor Cost | L4: Labor Sales | M4: Flat Rate Hours | N4: Technican Number | O4: Pay Per FRH | P4: Labor Cost | Q4: Labor Sales | R4: Flat Rate Hours | S4: Technican Number | T4: Pay Per FRH | U4: Labor Cost
B6: 1 | C6: 150745 | D6: 2011 | E6: lacrosse | F6: 68808 | G6: 22.85 | H6: 0.6 | I6: 753 | J6: =IF(ISERROR(VLOOKUP('Input Sheet'!$I6,TechNumber,2,FALSE)),"",VLOOKUP('Input Sheet'!$I6,TechNumber,2,FALSE)) -> 15.5 | K6: =IF(ISERROR(H6*J6),"",H6*J6) -> 9.3 | O6: =IF(ISERROR(VLOOKUP('Input Sheet'!#REF!,TechNumber,2,FALSE)),"",VLOOKUP('Input Sheet'!#REF!,TechNumber,2,FALSE)) ->  | P6: =IF(ISERROR(#REF!*O6)," ",#REF!*O6) ->  | T6: =IF(ISERROR(VLOOKUP('Input Sheet'!$S6,TechNumber,2,FALSE)),"",VLOOKUP('Input Sheet'!$S6,TechNumber,2,FALSE)) ->  | U6: =IF(ISERROR(R6*T6),"",R6*T6) ->  | V6: =SUM(U6,P6,K6) -> 9.3 | W6: 1
B7: 2 | C7: 150747 | D7: 2013 | E7: sierra | F7: 57642 | G7: 32.95 | H7: 0.6 | I7: 753 | J7: 15.5 | K7: =IF(ISERROR(H7*J7)," ",H7*J7) -> 9.3 | T7: =IF(ISERROR(VLOOKUP('Input Sheet'!$S7,TechNumber,2,FALSE)),"",VLOOKUP('Input Sheet'!$S7,TechNumber,2,FALSE)) ->  | V7: =SUM(U7,K7,) -> 9.3 | W7: 1
B8: 3 | C8: 150753 | D8: 2003 | E8: envoy | F8: 195234 | G8: 22.85 | H8: 0.6 | I8: 753 | J8: 15.5 | K8: =IF(ISERROR(H8*J8)," ",H8*J8) -> 9.3 | T8: =IF(ISERROR(VLOOKUP('Input Sheet'!$S8,TechNumber,2,FALSE)),"",VLOOKUP('Input Sheet'!$S8,TechNumber,2,FALSE)) ->  | V8: =SUM(U8,K8,) -> 9.3 | W8: 1
B9: 4 | C9: 150756 | D9: 2016 | E9: terrain | F9: 13866 | G9: 22.85 | H9: 0.6 | I9: 753 | J9: 15.5 | K9: =IF(ISERROR(H9*J9)," ",H9*J9) -> 9.3 | T9: =IF(ISERROR(VLOOKUP('Input Sheet'!$S9,TechNumber,2,FALSE)),"",VLOOKUP('Input Sheet'!$S9,TechNumber,2,FALSE)) ->  | V9: =SUM(U9,K9,) -> 9.3 | W9: 1
B10: 5 | C10: 150599 | D10: 2009 | E10: acadia | F10: 122461 | J10: =IF(ISERROR(VLOOKUP('Input Sheet'!$I10,TechNumber,2,FALSE)),"",VLOOKUP('Input Sheet'!$I10,TechNumber,2,FALSE)) ->  | K10: =IF(ISERROR(H10*J10),"",H10*J10) ->  | O10: =IF(ISERROR(VLOOKUP('Input Sheet'!$N10,TechNumber,2,FALSE)),"",VLOOKUP('Input Sheet'!$N10,TechNumber,2,FALSE)) ->  | P10: =IF(ISERROR(M10*O10)," ",M10*O10) ->  | Q10: 260 | R10: 2 | S10: 735 | T10: 32 | U10: 64 | V10: =SUM(U10,P10,K10) -> 64 | W10: 1
B11: 6 | C11: 150603 | D11: 2012 | E11: acadia | F11: 36209 | G11: 22.85 | H11: 0.6 | I11: 716 | J11: 21 | K11: =IF(ISERROR(H11*J11)," ",H11*J11) -> 12.6 | T11: =IF(ISERROR(VLOOKUP('Input Sheet'!$S11,TechNumber,2,FALSE)),"",VLOOKUP('Input Sheet'!$S11,TechNumber,2,FALSE)) ->  | V11: =SUM(U11,K11) -> 12.6 | W11: 1
B12: 7 | C12: 150612 | D12: 2016 | E12: yukon | F12: 21875 | G12: 22.85 | H12: 0.6 | I12: 717 | J12: 26 | K12: =IF(ISERROR(H12*J12)," ",H12*J12) -> 15.6 | T12: =IF(ISERROR(VLOOKUP('Input Sheet'!$S12,TechNumber,2,FALSE)),"",VLOOKUP('Input Sheet'!$S12,TechNumber,2,FALSE)) ->  | V12: =SUM(U12,K12,) -> 15.6 | W12: 1
B13: 8 | C13: 150615 | D13: 2016 | E13: canyon | F13: 22702 | G13: 32.95 | H13: 0.6 | I13: 716 | J13: 21 | K13: =IF(ISERROR(H13*J13)," ",H13*J13) -> 12.6 | T13: =IF(ISERROR(VLOOKUP('Input Sheet'!$S13,TechNumber,2,FALSE)),"",VLOOKUP('Input Sheet'!$S13,TechNumber,2,FALSE)) ->  | V13: =SUM(U13,K13,) -> 12.6 | W13: 1
B14: 9 | C14: 150626 | D14: 2016 | E14: yukon | F14: 21258 | G14: 22.85 | H14: 0.6 | I14: 743 | J14: 21 | K14: =IF(ISERROR(H14*J14)," ",H14*J14) -> 12.6 | T14: =IF(ISERROR(VLOOKUP('Input Sheet'!$S14,TechNumber,2,FALSE)),"",VLOOKUP('Input Sheet'!$S14,TechNumber,2,FALSE)) ->  | V14: =SUM(U14,K14) -> 12.6 | W14: 1
B15: 10 | C15: 150631 | D15: 2011 | E15: lacrosse | F15: 87727 | J15: =IF(ISERROR(VLOOKUP('Input Sheet'!$I15,TechNumber,2,FALSE)),"",VLOOKUP('Input Sheet'!$I15,TechNumber,2,FALSE)) ->  | K15: =IF(ISERROR(H15*J15),"",H15*J15) ->  | L15: 217.85 | M15: 2.1 | N15: 717 | O15: =IF(ISERROR(VLOOKUP('Input Sheet'!$N15,TechNumber,2,FALSE)),"",VLOOKUP('Input Sheet'!$N15,TechNumber,2,FALSE)) -> 26 | P15: =IF(ISERROR(M15*O15),"",M15*O15) -> 54.6 | V15: =SUM(P15,K15) -> 54.6 | W15: 2
B16: 11 | C16: 150635 | D16: 2013 | E16: verano | F16: 16172 | G16: 22.85 | H16: 0.6 | I16: 753 | J16: =IF(ISERROR(VLOOKUP('Input Sheet'!$I16,TechNumber,2,FALSE)),"",VLOOKUP('Input Sheet'!$I16,TechNumber,2,FALSE)) -> 15.5 | K16: 9.3 | O16: =IF(ISERROR(VLOOKUP('Input Sheet'!$N16,TechNumber,2,FALSE)),"",VLOOKUP('Input Sheet'!$N16,TechNumber,2,FALSE)) ->  | T16: =IF(ISERROR(VLOOKUP('Input Sheet'!$S16,TechNumber,2,FALSE)),"",VLOOKUP('Input Sheet'!$S16,TechNumber,2,FALSE)) ->  | V16: 9.3 | W16: 1
B17: 12 | C17: 150601 | D17: 2007 | E17: yukon | F17: 169149 | O17: =IF(ISERROR(VLOOKUP('Input Sheet'!$N17,TechNumber,2,FALSE)),"",VLOOKUP('Input Sheet'!$N17,TechNumber,2,FALSE)) ->  | Q17: 559 | R17: 4.3 | S17: 735 | T17: =IF(ISERROR(VLOOKUP('Input Sheet'!$S17,TechNumber,2,FALSE)),"",VLOOKUP('Input Sheet'!$S17,TechNumber,2,FALSE)) -> 32 | U17: =IF(ISERROR(R17*T17),"",R17*T17) -> 137.6 | V17: =SUM(P17,U17) -> 137.6 | W17: 1
B18: 13 | C18: 150648 | D18: 2014 | E18: sierra | F18: 75207 | J18: =IF(ISERROR(VLOOKUP('Input Sheet'!$I18,TechNumber,2,FALSE)),"",VLOOKUP('Input Sheet'!$I18,TechNumber,2,FALSE)) ->  | O18: =IF(ISERROR(VLOOKUP('Input Sheet'!$N18,TechNumber,2,FALSE)),"",VLOOKUP('Input Sheet'!$N18,TechNumber,2,FALSE)) ->  | Q18: 152.85 | R18: 1.6 | S18: 753 | T18: =IF(ISERROR(VLOOKUP('Input Sheet'!$S18,TechNumber,2,FALSE)),"",VLOOKUP('Input Sheet'!$S18,TechNumber,2,FALSE)) -> 15.5 | U18: 24.8 | V18: 24.8 | W18: 2
B19: 14 | C19: 150649 | D19: 2015 | E19: yukon xl | F19: 42330 | G19: 22.85 | H19: 0.6 | I19: 753 | J19: =IF(ISERROR(VLOOKUP('Input Sheet'!$I19,TechNumber,2,FALSE)),"",VLOOKUP('Input Sheet'!$I19,TechNumber,2,FALSE)) -> 15.5 | K19: 9.3 | O19: =IF(ISERROR(VLOOKUP('Input Sheet'!$N19,TechNumber,2,FALSE)),"",VLOOKUP('Input Sheet'!$N19,TechNumber,2,FALSE)) ->  | T19: =IF(ISERROR(VLOOKUP('Input Sheet'!$S19,TechNumber,2,FALSE)),"",VLOOKUP('Input Sheet'!$S19,TechNumber,2,FALSE)) ->  | V19: 9.3 | W19: 1
B20: 15 | C20: 150653 | D20: 2007 | E20: yukon | F20: 47031 | J20: =IF(ISERROR(VLOOKUP('Input Sheet'!$I20,TechNumber,2,FALSE)),"",VLOOKUP('Input Sheet'!$I20,TechNumber,2,FALSE)) ->  | L20: 118.1 | M20: 0.4 | N20: 717 | O20: =IF(ISERROR(VLOOKUP('Input Sheet'!$N20,TechNumber,2,FALSE)),"",VLOOKUP('Input Sheet'!$N20,TechNumber,2,FALSE)) -> 26 | P20: 10.4 | T20: =IF(ISERROR(VLOOKUP('Input Sheet'!$S20,TechNumber,2,FALSE)),"",VLOOKUP('Input Sheet'!$S20,TechNumber,2,FALSE)) ->  | V20: 10.4 | W20: 2
B21: 16 | C21: 150667 | D21: 2008 | E21: lacrosse | F21: 53223 | G21: 22.85 | H21: 0.6 | I21: 753 | J21: =IF(ISERROR(VLOOKUP('Input Sheet'!$I21,TechNumber,2,FALSE)),"",VLOOKUP('Input Sheet'!$I21,TechNumber,2,FALSE)) -> 15.5 | K21: 9.3 | O21: =IF(ISERROR(VLOOKUP('Input Sheet'!$N21,TechNumber,2,FALSE)),"",VLOOKUP('Input Sheet'!$N21,TechNumber,2,FALSE)) ->  | T21: =IF(ISERROR(VLOOKUP('Input Sheet'!$S21,TechNumber,2,FALSE)),"",VLOOKUP('Input Sheet'!$S21,TechNumber,2,FALSE)) ->  | V21: =SUM(U21,P21,K21) -> 9.3 | W21: 1
B22: 17 | C22: 150684 | D22: 2015 | E22: acadia | F22: 40511 | G22: 22.85 | H22: 0.6 | I22: 717 | J22: =IF(ISERROR(VLOOKUP('Input Sheet'!$I22,TechNumber,2,FALSE)),"",VLOOKUP('Input Sheet'!$I22,TechNumber,2,FALSE)) -> 26 | K22: 15.6 | O22: =IF(ISERROR(VLOOKUP('Input Sheet'!$N22,TechNumber,2,FALSE)),"",VLOOKUP('Input Sheet'!$N22,TechNumber,2,FALSE)) ->  | T22: =IF(ISERROR(VLOOKUP('Input Sheet'!$S22,TechNumber,2,FALSE)),"",VLOOKUP('Input Sheet'!$S22,TechNumber,2,FALSE)) ->  | V22: 15.6 | W22: 1
B23: 18 | C23: 150669 | D23: 2002 | E23: lesabre | F23: 100000 | J23: =IF(ISERROR(VLOOKUP('Input Sheet'!$I23,TechNumber,2,FALSE)),"",VLOOKUP('Input Sheet'!$I23,TechNumber,2,FALSE)) ->  | O23: =IF(ISERROR(VLOOKUP('Input Sheet'!$N23,TechNumber,2,FALSE)),"",VLOOKUP('Input Sheet'!$N23,TechNumber,2,FALSE)) ->  | Q23: 334.85 | R23: 3 | S23: 753 | T23: =IF(ISERROR(VLOOKUP('Input Sheet'!$S23,TechNumber,2,FALSE)),"",VLOOKUP('Input Sheet'!$S23,TechNumber,2,FALSE)) -> 15.5 | U23: 46.5 | V23: 46.5 | W23: 3
B24: 19 | C24: 150691 | D24: 2012 | E24: verano | F24: 25085 | G24: 22.85 | H24: 0.6 | I24: 753 | J24: =IF(ISERROR(VLOOKUP('Input Sheet'!$I24,TechNumber,2,FALSE)),"",VLOOKUP('Input Sheet'!$I24,TechNumber,2,FALSE)) -> 15.5 | K24: 9.3 | O24: =IF(ISERROR(VLOOKUP('Input Sheet'!$N24,TechNumber,2,FALSE)),"",VLOOKUP('Input Sheet'!$N24,TechNumber,2,FALSE)) ->  | T24: =IF(ISERROR(VLOOKUP('Input Sheet'!$S24,TechNumber,2,FALSE)),"",VLOOKUP('Input Sheet'!$S24,TechNumber,2,FALSE)) ->  | V24: 9.3 | W24: 1
B25: 20 | C25: 150703 | D25: 2007 | E25: ion | F25: 66314 | G25: 22.85 | H25: 0.6 | I25: 753 | J25: =IF(ISERROR(VLOOKUP('Input Sheet'!$I25,TechNumber,2,FALSE)),"",VLOOKUP('Input Sheet'!$I25,TechNumber,2,FALSE)) -> 15.5 | K25: 9.3 | O25: =IF(ISERROR(VLOOKUP('Input Sheet'!$N25,TechNumber,2,FALSE)),"",VLOOKUP('Input Sheet'!$N25,TechNumber,2,FALSE)) ->  | T25: =IF(ISERROR(VLOOKUP('Input Sheet'!$S25,TechNumber,2,FALSE)),"",VLOOKUP('Input Sheet'!$S25,TechNumber,2,FALSE)) ->  | V25: 9.3 | W25: 1
B26: 21 | C26: 150706 | D26: 2015 | E26: yukon xl | F26: 47906 | G26: 22.85 | H26: 0.6 | I26: 753 | J26: =IF(ISERROR(VLOOKUP('Input Sheet'!$I26,TechNumber,2,FALSE)),"",VLOOKUP('Input Sheet'!$I26,TechNumber,2,FALSE)) -> 15.5 | K26: 9.3 | O26: =IF(ISERROR(VLOOKUP('Input Sheet'!$N26,TechNumber,2,FALSE)),"",VLOOKUP('Input Sheet'!$N26,TechNumber,2,FALSE)) ->  | T26: =IF(ISERROR(VLOOKUP('Input Sheet'!$S26,TechNumber,2,FALSE)),"",VLOOKUP('Input Sheet'!$S26,TechNumber,2,FALSE)) ->  | V26: 9.3 | W26: 1
B27: 22 | C27: 150629 | D27: 2010 | E27: tahoe | F27: 108447 | J27: =IF(ISERROR(VLOOKUP('Input Sheet'!$I27,TechNumber,2,FALSE)),"",VLOOKUP('Input Sheet'!$I27,TechNumber,2,FALSE)) ->  | O27: =IF(ISERROR(VLOOKUP('Input Sheet'!$N27,TechNumber,2,FALSE)),"",VLOOKUP('Input Sheet'!$N27,TechNumber,2,FALSE)) ->  | Q27: 585 | R27: 4.5 | S27: 743 | T27: =IF(ISERROR(VLOOKUP('Input Sheet'!$S27,TechNumber,2,FALSE)),"",VLOOKUP('Input Sheet'!$S27,TechNumber,2,FALSE)) -> 21 | U27: 94.5 | V27: 94.5 | W27: 2
B28: 23 | C28: 150700 | D28: 2004 | E28: yukon | F28: 133816 | G28: 22.85 | H28: 0.6 | I28: 753 | J28: =IF(ISERROR(VLOOKUP('Input Sheet'!$I28,TechNumber,2,FALSE)),"",VLOOKUP('Input Sheet'!$I28,TechNumber,2,FALSE)) -> 15.5 | K28: 9.3 | O28: =IF(ISERROR(VLOOKUP('Input Sheet'!$N28,TechNumber,2,FALSE)),"",VLOOKUP('Input Sheet'!$N28,TechNumber,2,FALSE)) ->  | T28: =IF(ISERROR(VLOOKUP('Input Sheet'!$S28,TechNumber,2,FALSE)),"",VLOOKUP('Input Sheet'!$S28,TechNumber,2,FALSE)) ->  | V28: 9.3 | W28: 1
B29: 24 | C29: 150714 | D29: 2015 | E29: sierra 2500 | F29: 32953 | J29: =IF(ISERROR(VLOOKUP('Input Sheet'!$I29,TechNumber,2,FALSE)),"",VLOOKUP('Input Sheet'!$I29,TechNumber,2,FALSE)) ->  | L29: 147.95 | M29: 2.6 | N29: 743 | O29: =IF(ISERROR(VLOOKUP('Input Sheet'!$N29,TechNumber,2,FALSE)),"",VLOOKUP('Input Sheet'!$N29,TechNumber,2,FALSE)) -> 21 | P29: 54.6 | T29: =IF(ISERROR(VLOOKUP('Input Sheet'!$S29,TechNumber,2,FALSE)),"",VLOOKUP('Input Sheet'!$S29,TechNumber,2,FALSE)) ->  | V29: 54.6 | W29: 2
B30: 25 | C30: 150726 | D30: 2015 | E30: terrain | F30: 44895 | J30: =IF(ISERROR(VLOOKUP('Input Sheet'!$I30,TechNumber,2,FALSE)),"",VLOOKUP('Input Sheet'!$I30,TechNumber,2,FALSE)) ->  | L30: 69.98 | M30: 1 | N30: 743 | O30: =IF(ISERROR(VLOOKUP('Input Sheet'!$N30,TechNumber,2,FALSE)),"",VLOOKUP('Input Sheet'!$N30,TechNumber,2,FALSE)) -> 21 | P30: 21 | T30: =IF(ISERROR(VLOOKUP('Input Sheet'!$S30,TechNumber,2,FALSE)),"",VLOOKUP('Input Sheet'!$S30,TechNumber,2,FALSE)) ->  | V30: 21 | W30: 1
B31: 26 | C31: 150657 | D31: 2011 | E31: sierra 2500 | F31: 89668 | J31: =IF(ISERROR(VLOOKUP('Input Sheet'!$I31,TechNumber,2,FALSE)),"",VLOOKUP('Input Sheet'!$I31,TechNumber,2,FALSE)) ->  | O31: =IF(ISERROR(VLOOKUP('Input Sheet'!$N31,TechNumber,2,FALSE)),"",VLOOKUP('Input Sheet'!$N31,TechNumber,2,FALSE)) ->  | Q31: 201.9 | R31: 2.1 | S31: 753 | T31: =IF(ISERROR(VLOOKUP('Input Sheet'!$S31,TechNumber,2,FALSE)),"",VLOOKUP('Input Sheet'!$S31,TechNumber,2,FALSE)) -> 15.5 | U31: 32.55 | V31: 32.55 | W31: 3
B32: 27 | C32: 150668 | D32: 2009 | E32: sierra | F32: 138570 | J32: =IF(ISERROR(VLOOKUP('Input Sheet'!$I32,TechNumber,2,FALSE)),"",VLOOKUP('Input Sheet'!$I32,TechNumber,2,FALSE)) ->  | O32: =IF(ISERROR(VLOOKUP('Input Sheet'!$N32,TechNumber,2,FALSE)),"",VLOOKUP('Input Sheet'!$N32,TechNumber,2,FALSE)) ->  | Q32: 347.85 | R32: 3.1 | S32: 743 | T32: =IF(ISERROR(VLOOKUP('Input Sheet'!$S32,TechNumber,2,FALSE)),"",VLOOKUP('Input Sheet'!$S32,TechNumber,2,FALSE)) -> 21 | U32: 65.1 | V32: 65.1 | W32: 3
B33: 28 | C33: 150733 | D33: 2011 | E33: acadia | F33: 97540 | J33: =IF(ISERROR(VLOOKUP('Input Sheet'!$I33,TechNumber,2,FALSE)),"",VLOOKUP('Input Sheet'!$I33,TechNumber,2,FALSE)) ->  | O33: =IF(ISERROR(VLOOKUP('Input Sheet'!$N33,TechNumber,2,FALSE)),"",VLOOKUP('Input Sheet'!$N33,TechNumber,2,FALSE)) ->  | Q33: 182 | R33: 1.4 | S33: 743 | T33: =IF(ISERROR(VLOOKUP('Input Sheet'!$S33,TechNumber,2,FALSE)),"",VLOOKUP('Input Sheet'!$S33,TechNumber,2,FALSE)) -> 21 | U33: 29.4 | V33: 29.4 | W33: 1
B34: 29 | C34: 150744 | D34: 2016 | E34: sierra | F34: 23304 | G34: 22.85 | H34: 0.6 | I34: 753 | J34: =IF(ISERROR(VLOOKUP('Input Sheet'!$I34,TechNumber,2,FALSE)),"",VLOOKUP('Input Sheet'!$I34,TechNumber,2,FALSE)) -> 15.5 | K34: 9.3 | O34: =IF(ISERROR(VLOOKUP('Input Sheet'!$N34,TechNumber,2,FALSE)),"",VLOOKUP('Input Sheet'!$N34,TechNumber,2,FALSE)) ->  | T34: =IF(ISERROR(VLOOKUP('Input Sheet'!$S34,TechNumber,2,FALSE)),"",VLOOKUP('Input Sheet'!$S34,TechNumber,2,FALSE)) ->  | V34: 9.3 | W34: 1
B35: 30 | C35: 150746 | D35: 2002 | E35: sierra | F35: 48805 | G35: 22.85 | H35: 0.6 | I35: 753 | J35: =IF(ISERROR(VLOOKUP('Input Sheet'!$I35,TechNumber,2,FALSE)),"",VLOOKUP('Input Sheet'!$I35,TechNumber,2,FALSE)) -> 15.5 | K35: 9.3 | O35: =IF(ISERROR(VLOOKUP('Input Sheet'!$N35,TechNumber,2,FALSE)),"",VLOOKUP('Input Sheet'!$N35,TechNumber,2,FALSE)) ->  | T35: =IF(ISERROR(VLOOKUP('Input Sheet'!$S35,TechNumber,2,FALSE)),"",VLOOKUP('Input Sheet'!$S35,TechNumber,2,FALSE)) ->  | V35: 9.3 | W35: 1
B36: 31 | C36: 150751 | D36: 2015 | E36: acadia | F36: 28585 | G36: 22.85 | H36: 0.6 | I36: 753 | J36: =IF(ISERROR(VLOOKUP('Input Sheet'!$I36,TechNumber,2,FALSE)),"",VLOOKUP('Input Sheet'!$I36,TechNumber,2,FALSE)) -> 15.5 | K36: 9.3 | O36: =IF(ISERROR(VLOOKUP('Input Sheet'!$N36,TechNumber,2,FALSE)),"",VLOOKUP('Input Sheet'!$N36,TechNumber,2,FALSE)) ->  | T36: =IF(ISERROR(VLOOKUP('Input Sheet'!$S36,TechNumber,2,FALSE)),"",VLOOKUP('Input Sheet'!$S36,TechNumber,2,FALSE)) ->  | V36: 9.3 | W36: 1
B37: 32 | C37: 150755 | D37: 2013 | E37: escalade | F37: 51530 | G37: 22.85 | H37: 0.6 | I37: 753 | J37: =IF(ISERROR(VLOOKUP('Input Sheet'!$I37,TechNumber,2,FALSE)),"",VLOOKUP('Input Sheet'!$I37,TechNumber,2,FALSE)) -> 15.5 | K37: 9.3 | O37: =IF(ISERROR(VLOOKUP('Input Sheet'!$N37,TechNumber,2,FALSE)),"",VLOOKUP('Input Sheet'!$N37,TechNumber,2,FALSE)) ->  | T37: =IF(ISERROR(VLOOKUP('Input Sheet'!$S37,TechNumber,2,FALSE)),"",VLOOKUP('Input Sheet'!$S37,TechNumber,2,FALSE)) ->  | V37: 9.3 | W37: 1
B38: 33 | C38: 150758 | D38: 2015 | E38: verano | F38: 38428 | G38: 22.85 | H38: 0.6 | I38: 753 | J38: =IF(ISERROR(VLOOKUP('Input Sheet'!$I38,TechNumber,2,FALSE)),"",VLOOKUP('Input Sheet'!$I38,TechNumber,2,FALSE)) -> 15.5 | K38: 9.3 | O38: =IF(ISERROR(VLOOKUP('Input Sheet'!$N38,TechNumber,2,FALSE)),"",VLOOKUP('Input Sheet'!$N38,TechNumber,2,FALSE)) ->  | T38: =IF(ISERROR(VLOOKUP('Input Sheet'!$S38,TechNumber,2,FALSE)),"",VLOOKUP('Input Sheet'!$S38,TechNumber,2,FALSE)) ->  | V38: 9.3 | W38: 1
B39: 34 | C39: 150760 | D39: 2009 | E39: sierra | F39: 23230 | G39: 22.85 | H39: 0.6 | I39: 753 | J39: =IF(ISERROR(VLOOKUP('Input Sheet'!$I39,TechNumber,2,FALSE)),"",VLOOKUP('Input Sheet'!$I39,TechNumber,2,FALSE)) -> 15.5 | K39: 9.3 | O39: =IF(ISERROR(VLOOKUP('Input Sheet'!$N39,TechNumber,2,FALSE)),"",VLOOKUP('Input Sheet'!$N39,TechNumber,2,FALSE)) ->  | T39: =IF(ISERROR(VLOOKUP('Input Sheet'!$S39,TechNumber,2,FALSE)),"",VLOOKUP('Input Sheet'!$S39,TechNumber,2,FALSE)) ->  | V39: 9.3 | W39: 1
B40: 35 | C40: 150763 | D40: 2016 | E40: emcore | F40: 16509 | G40: 22.85 | H40: 0.6 | I40: 753 | J40: =IF(ISERROR(VLOOKUP('Input Sheet'!$I40,TechNumber,2,FALSE)),"",VLOOKUP('Input Sheet'!$I40,TechNumber,2,FALSE)) -> 15.5 | K40: 9.3 | O40: =IF(ISERROR(VLOOKUP('Input Sheet'!$N40,TechNumber,2,FALSE)),"",VLOOKUP('Input Sheet'!$N40,TechNumber,2,FALSE)) ->  | T40: =IF(ISERROR(VLOOKUP('Input Sheet'!$S40,TechNumber,2,FALSE)),"",VLOOKUP('Input Sheet'!$S40,TechNumber,2,FALSE)) ->  | V40: 9.3 | W40: 1
B41: 36 | C41: 150764 | D41: 2009 | E41: yukon | F41: 135281 | J41: =IF(ISERROR(VLOOKUP('Input Sheet'!$I41,TechNumber,2,FALSE)),"",VLOOKUP('Input Sheet'!$I41,TechNumber,2,FALSE)) ->  | L41: 282.85 | M41: 2.6 | N41: 753 | O41: =IF(ISERROR(VLOOKUP('Input Sheet'!$N41,TechNumber,2,FALSE)),"",VLOOKUP('Input Sheet'!$N41,TechNumber,2,FALSE)) -> 15.5 | P41: 40.3 | T41: =IF(ISERROR(VLOOKUP('Input Sheet'!$S41,TechNumber,2,FALSE)),"",VLOOKUP('Input Sheet'!$S41,TechNumber,2,FALSE)) ->  | V41: 40.3 | W41: 2
B42: 37 | C42: 150775 | D42: 2015 | E42: yukon xl | F42: 29452 | J42: =IF(ISERROR(VLOOKUP('Input Sheet'!$I42,TechNumber,2,FALSE)),"",VLOOKUP('Input Sheet'!$I42,TechNumber,2,FALSE)) ->  | L42: 260 | M42: 2 | N42: 717 | O42: =IF(ISERROR(VLOOKUP('Input Sheet'!$N42,TechNumber,2,FALSE)),"",VLOOKUP('Input Sheet'!$N42,TechNumber,2,FALSE)) -> 26 | P42: 52 | T42: =IF(ISERROR(VLOOKUP('Input Sheet'!$S42,TechNumber,2,FALSE)),"",VLOOKUP('Input Sheet'!$S42,TechNumber,2,FALSE)) ->  | V42: 52 | W42: 1
B43: 38 | C43: 150771 | D43: 2004 | E43: sierra 2500 | F43: 83059 | J43: =IF(ISERROR(VLOOKUP('Input Sheet'!$I43,TechNumber,2,FALSE)),"",VLOOKUP('Input Sheet'!$I43,TechNumber,2,FALSE)) ->  | O43: =IF(ISERROR(VLOOKUP('Input Sheet'!$N43,TechNumber,2,FALSE)),"",VLOOKUP('Input Sheet'!$N43,TechNumber,2,FALSE)) ->  | Q43: 438.85 | R43: 3.8 | S43: 753 | T43: =IF(ISERROR(VLOOKUP('Input Sheet'!$S43,TechNumber,2,FALSE)),"",VLOOKUP('Input Sheet'!$S43,TechNumber,2,FALSE)) -> 15.5 | U43: 58.9 | V43: 58.9 | W43: 3
B44: 39 | C44: 150778 | D44: 2015 | E44: sierra | F44: 67885 | J44: =IF(ISERROR(VLOOKUP('Input Sheet'!$I44,TechNumber,2,FALSE)),"",VLOOKUP('Input Sheet'!$I44,TechNumber,2,FALSE)) ->  | O44: =IF(ISERROR(VLOOKUP('Input Sheet'!$N44,TechNumber,2,FALSE)),"",VLOOKUP('Input Sheet'!$N44,TechNumber,2,FALSE)) ->  | Q44: 130 | R44: 1 | S44: 735 | T44: =IF(ISERROR(VLOOKUP('Input Sheet'!$S44,TechNumber,2,FALSE)),"",VLOOKUP('Input Sheet'!$S44,TechNumber,2,FALSE)) -> 32 | U44: 32 | V44: 32 | W44: 1
B45: 40 | C45: 150818 | D45: 2013 | E45: cts | F45: 33936 | G45: 37.95 | H45: 0.6 | I45: 753 | J45: =IF(ISERROR(VLOOKUP('Input Sheet'!$I45,TechNumber,2,FALSE)),"",VLOOKUP('Input Sheet'!$I45,TechNumber,2,FALSE)) -> 15.5 | K45: 9.3 | O45: =IF(ISERROR(VLOOKUP('Input Sheet'!$N45,TechNumber,2,FALSE)),"",VLOOKUP('Input Sheet'!$N45,TechNumber,2,FALSE)) ->  | T45: =IF(ISERROR(VLOOKUP('Input Sheet'!$S45,TechNumber,2,FALSE)),"",VLOOKUP('Input Sheet'!$S45,TechNumber,2,FALSE)) ->  | V45: 9.3 | W45: 1
B46: 41 | C46: 150824 | D46: 2003 | E46: rendezvous | F46: 67918 | J46: =IF(ISERROR(VLOOKUP('Input Sheet'!$I46,TechNumber,2,FALSE)),"",VLOOKUP('Input Sheet'!$I46,TechNumber,2,FALSE)) ->  | L46: 152.85 | M46: 1.6 | N46: 753 | O46: =IF(ISERROR(VLOOKUP('Input Sheet'!$N46,TechNumber,2,FALSE)),"",VLOOKUP('Input Sheet'!$N46,TechNumber,2,FALSE)) -> 15.5 | P46: 24.8 | T46: =IF(ISERROR(VLOOKUP('Input Sheet'!$S46,TechNumber,2,FALSE)),"",VLOOKUP('Input Sheet'!$S46,TechNumber,2,FALSE)) ->  | V46: 24.8 | W46: 2
B47: 42 | C47: 150837 | D47: 2013 | E47: lacrosse | F47: 23705 | G47: 62.5 | H47: 0.6 | I47: 753 | J47: =IF(ISERROR(VLOOKUP('Input Sheet'!$I47,TechNumber,2,FALSE)),"",VLOOKUP('Input Sheet'!$I47,TechNumber,2,FALSE)) -> 15.5 | K47: 9.3 | O47: =IF(ISERROR(VLOOKUP('Input Sheet'!$N47,TechNumber,2,FALSE)),"",VLOOKUP('Input Sheet'!$N47,TechNumber,2,FALSE)) ->  | T47: =IF(ISERROR(VLOOKUP('Input Sheet'!$S47,TechNumber,2,FALSE)),"",VLOOKUP('Input Sheet'!$S47,TechNumber,2,FALSE)) ->  | V47: 9.3 | W47: 1
B48: 43 | C48: 150840 | D48: 2012 | E48: yukon | F48: 60278 | G48: 22.85 | H48: 0.6 | I48: 753 | J48: =IF(ISERROR(VLOOKUP('Input Sheet'!$I48,TechNumber,2,FALSE)),"",VLOOKUP('Input Sheet'!$I48,TechNumber,2,FALSE)) -> 15.5 | K48: 9.3 | O48: =IF(ISERROR(VLOOKUP('Input Sheet'!$N48,TechNumber,2,FALSE)),"",VLOOKUP('Input Sheet'!$N48,TechNumber,2,FALSE)) ->  | T48: =IF(ISERROR(VLOOKUP('Input Sheet'!$S48,TechNumber,2,FALSE)),"",VLOOKUP('Input Sheet'!$S48,TechNumber,2,FALSE)) ->  | V48: 9.3 | W48: 1
B49: 44 | C49: 150795 | D49: 2001 | E49: sierra | F49: 252286 | J49: =IF(ISERROR(VLOOKUP('Input Sheet'!$I49,TechNumber,2,FALSE)),"",VLOOKUP('Input Sheet'!$I49,TechNumber,2,FALSE)) ->  | O49: =IF(ISERROR(VLOOKUP('Input Sheet'!$N49,TechNumber,2,FALSE)),"",VLOOKUP('Input Sheet'!$N49,TechNumber,2,FALSE)) ->  | Q49: 234 | R49: 1.8 | S49: 735 | T49: =IF(ISERROR(VLOOKUP('Input Sheet'!$S49,TechNumber,2,FALSE)),"",VLOOKUP('Input Sheet'!$S49,TechNumber,2,FALSE)) -> 32 | U49: 57.6 | V49: 57.6 | W49: 1
B50: 45 | C50: 150835 | D50: 2007 | E50: hhr | F50: 57059 | G50: 12.6 | H50: 0.6 | I50: 753 | J50: =IF(ISERROR(VLOOKUP('Input Sheet'!$I50,TechNumber,2,FALSE)),"",VLOOKUP('Input Sheet'!$I50,TechNumber,2,FALSE)) -> 15.5 | K50: 9.3 | O50: =IF(ISERROR(VLOOKUP('Input Sheet'!$N50,TechNumber,2,FALSE)),"",VLOOKUP('Input Sheet'!$N50,TechNumber,2,FALSE)) ->  | T50: =IF(ISERROR(VLOOKUP('Input Sheet'!$S50,TechNumber,2,FALSE)),"",VLOOKUP('Input Sheet'!$S50,TechNumber,2,FALSE)) ->  | V50: 9.3 | W50: 1
B51: 46 | C51: 150842 | D51: 2015 | E51: acadia | F51: 19997 | G51: 22.85 | H51: 0.6 | I51: 753 | J51: =IF(ISERROR(VLOOKUP('Input Sheet'!$I51,TechNumber,2,FALSE)),"",VLOOKUP('Input Sheet'!$I51,TechNumber,2,FALSE)) -> 15.5 | K51: 9.3 | O51: =IF(ISERROR(VLOOKUP('Input Sheet'!$N51,TechNumber,2,FALSE)),"",VLOOKUP('Input Sheet'!$N51,TechNumber,2,FALSE)) ->  | T51: =IF(ISERROR(VLOOKUP('Input Sheet'!$S51,TechNumber,2,FALSE)),"",VLOOKUP('Input Sheet'!$S51,TechNumber,2,FALSE)) ->  | V51: 9.3 | W51: 1
B52: 47 | C52: 150844 | D52: 2015 | E52: terrain | F52: 71988 | J52: =IF(ISERROR(VLOOKUP('Input Sheet'!$I52,TechNumber,2,FALSE)),"",VLOOKUP('Input Sheet'!$I52,TechNumber,2,FALSE)) ->  | L52: 118.1 | M52: 1.6 | N52: 717 | O52: =IF(ISERROR(VLOOKUP('Input Sheet'!$N52,TechNumber,2,FALSE)),"",VLOOKUP('Input Sheet'!$N52,TechNumber,2,FALSE)) -> 26 | P52: 41.6 | T52: =IF(ISERROR(VLOOKUP('Input Sheet'!$S52,TechNumber,2,FALSE)),"",VLOOKUP('Input Sheet'!$S52,TechNumber,2,FALSE)) ->  | V52: 41.6 | W52: 2
B53: 48 | C53: 150847 | D53: 2016 | E53: yukon | F53: 24025 | G53: 22.85 | H53: 0.6 | I53: 753 | J53: =IF(ISERROR(VLOOKUP('Input Sheet'!$I53,TechNumber,2,FALSE)),"",VLOOKUP('Input Sheet'!$I53,TechNumber,2,FALSE)) -> 15.5 | K53: 9.3 | O53: =IF(ISERROR(VLOOKUP('Input Sheet'!$N53,TechNumber,2,FALSE)),"",VLOOKUP('Input Sheet'!$N53,TechNumber,2,FALSE)) ->  | T53: =IF(ISERROR(VLOOKUP('Input Sheet'!$S53,TechNumber,2,FALSE)),"",VLOOKUP('Input Sheet'!$S53,TechNumber,2,FALSE)) ->  | V53: 9.3 | W53: 1
B54: 49 | C54: 150854 | D54: 2012 | E54: sierra | F54: 58312 | G54: 22.85 | H54: 0.6 | I54: 753 | J54: =IF(ISERROR(VLOOKUP('Input Sheet'!$I54,TechNumber,2,FALSE)),"",VLOOKUP('Input Sheet'!$I54,TechNumber,2,FALSE)) -> 15.5 | K54: 9.3 | O54: =IF(ISERROR(VLOOKUP('Input Sheet'!$N54,TechNumber,2,FALSE)),"",VLOOKUP('Input Sheet'!$N54,TechNumber,2,FALSE)) ->  | T54: =IF(ISERROR(VLOOKUP('Input Sheet'!$S54,TechNumber,2,FALSE)),"",VLOOKUP('Input Sheet'!$S54,TechNumber,2,FALSE)) ->  | V54: 9.3 | W54: 1
B55: 50 | C55: 150850 | D55: 1996 | E55: sierra 3500 | F55: 151130 | J55: =IF(ISERROR(VLOOKUP('Input Sheet'!$I55,TechNumber,2,FALSE)),"",VLOOKUP('Input Sheet'!$I55,TechNumber,2,FALSE)) ->  | O55: =IF(ISERROR(VLOOKUP('Input Sheet'!$N55,TechNumber,2,FALSE)),"",VLOOKUP('Input Sheet'!$N55,TechNumber,2,FALSE)) ->  | Q55: 15521.83 | R55: 20.6 | S55: 735 | T55: =IF(ISERROR(VLOOKUP('Input Sheet'!$S55,TechNumber,2,FALSE)),"",VLOOKUP('Input Sheet'!$S55,TechNumber,2,FALSE)) -> 32 | U55: 659.2 | V55: 700 | W55: 3
B56: 51 | C56: 151870 | D56: 2001 | E56: corvette | F56: 82756 | J56: =IF(ISERROR(VLOOKUP('Input Sheet'!$I56,TechNumber,2,FALSE)),"",VLOOKUP('Input Sheet'!$I56,TechNumber,2,FALSE)) ->  | O56: =IF(ISERROR(VLOOKUP('Input Sheet'!$N56,TechNumber,2,FALSE)),"",VLOOKUP('Input Sheet'!$N56,TechNumber,2,FALSE)) ->  | Q56: 74.85 | R56: 0.8 | S56: 735 | T56: =IF(ISERROR(VLOOKUP('Input Sheet'!$S56,TechNumber,2,FALSE)),"",VLOOKUP('Input Sheet'!$S56,TechNumber,2,FALSE)) -> 32 | U56: 25.6 | V56: 28 | W56: 3
B57: 52 | C57: 152414* | D57: 2014 | E57: sierra 1500 | F57: 54400 | J57: =IF(ISERROR(VLOOKUP('Input Sheet'!$I57,TechNumber,2,FALSE)),"",VLOOKUP('Input Sheet'!$I57,TechNumber,2,FALSE)) ->  | O57: =IF(ISERROR(VLOOKUP('Input Sheet'!$N57,TechNumber,2,FALSE)),"",VLOOKUP('Input Sheet'!$N57,TechNumber,2,FALSE)) ->  | Q57: 2054.64 | R57: 2.7 | S57: 735 | T57: =IF(ISERROR(VLOOKUP('Input Sheet'!$S57,TechNumber,2,FALSE)),"",VLOOKUP('Input Sheet'!$S57,TechNumber,2,FALSE)) -> 32 | U57: 86.4 | V57: 94.5 | W57: 4
B58: 53 | C58: 152548 | D58: 2006 | E58: yukon xl | F58: 179745 | J58: =IF(ISERROR(VLOOKUP('Input Sheet'!$I58,TechNumber,2,FALSE)),"",VLOOKUP('Input Sheet'!$I58,TechNumber,2,FALSE)) ->  | O58: =IF(ISERROR(VLOOKUP('Input Sheet'!$N58,TechNumber,2,FALSE)),"",VLOOKUP('Input Sheet'!$N58,TechNumber,2,FALSE)) ->  | Q58: 1066.18 | R58: 6.5 | S58: 735 | T58: =IF(ISERROR(VLOOKUP('Input Sheet'!$S58,TechNumber,2,FALSE)),"",VLOOKUP('Input Sheet'!$S58,TechNumber,2,FALSE)) -> 32 | U58: 208 | V58: 227.5 | W58: 4
B59: 54 | C59: 152555 | D59: 2007 | E59: Hummer H3 | F59: 113405 | J59: =IF(ISERROR(VLOOKUP('Input Sheet'!$I59,TechNumber,2,FALSE)),"",VLOOKUP('Input Sheet'!$I59,TechNumber,2,FALSE)) ->  | O59: =IF(ISERROR(VLOOKUP('Input Sheet'!$N59,TechNumber,2,FALSE)),"",VLOOKUP('Input Sheet'!$N59,TechNumber,2,FALSE)) ->  | Q59: 1188.88 | R59: 8.1 | S59: 743 | T59: =IF(ISERROR(VLOOKUP('Input Sheet'!$S59,TechNumber,2,FALSE)),"",VLOOKUP('Input Sheet'!$S59,TechNumber,2,FALSE)) -> 21 | U59: 170.1 | V59: 157.5 | W59: 4
B60: 55 | C60: 152677 | D60: 2014 | E60: Camaro | F60: 61516 | J60: =IF(ISERROR(VLOOKUP('Input Sheet'!$I60,TechNumber,2,FALSE)),"",VLOOKUP('Input Sheet'!$I60,TechNumber,2,FALSE)) ->  | L60: 182.08 | M60: 1.6 | N60: 743 | O60: =IF(ISERROR(VLOOKUP('Input Sheet'!$N60,TechNumber,2,FALSE)),"",VLOOKUP('Input Sheet'!$N60,TechNumber,2,FALSE)) -> 21 | P60: 33.6 | T60: =IF(ISERROR(VLOOKUP('Input Sheet'!$S60,TechNumber,2,FALSE)),"",VLOOKUP('Input Sheet'!$S60,TechNumber,2,FALSE)) ->  | V60: 182.08 | W60: 3
B61: 56 | C61: 152736 | D61: 2012 | E61: Yukon XL | F61: 78856 | J61: =IF(ISERROR(VLOOKUP('Input Sheet'!$I61,TechNumber,2,FALSE)),"",VLOOKUP('Input Sheet'!$I61,TechNumber,2,FALSE)) ->  | O61: =IF(ISERROR(VLOOKUP('Input Sheet'!$N61,TechNumber,2,FALSE)),"",VLOOKUP('Input Sheet'!$N61,TechNumber,2,FALSE)) ->  | Q61: 1286.96 | R61: 5.6 | S61: 735 | T61: =IF(ISERROR(VLOOKUP('Input Sheet'!$S61,TechNumber,2,FALSE)),"",VLOOKUP('Input Sheet'!$S61,TechNumber,2,FALSE)) -> 32 | U61: 179.2 | V61: 196 | W61: 4
B62: 57 | C62: 152745 | D62: 2005 | E62: Yukon | F62: 149595 | J62: =IF(ISERROR(VLOOKUP('Input Sheet'!$I62,TechNumber,2,FALSE)),"",VLOOKUP('Input Sheet'!$I62,TechNumber,2,FALSE)) ->  | O62: =IF(ISERROR(VLOOKUP('Input Sheet'!$N62,TechNumber,2,FALSE)),"",VLOOKUP('Input Sheet'!$N62,TechNumber,2,FALSE)) ->  | Q62: 1450.79 | R62: 1.5 | S62: 770 | T62: =IF(ISERROR(VLOOKUP('Input Sheet'!$S62,TechNumber,2,FALSE)),"",VLOOKUP('Input Sheet'!$S62,TechNumber,2,FALSE)) -> 21 | U62: 31.5 | V62: 195 | W62: 1
B63: 58 | C63: 152770 | D63: 2016 | E63: Canyon | F63: 17468 | J63: =IF(ISERROR(VLOOKUP('Input Sheet'!$I63,TechNumber,2,FALSE)),"",VLOOKUP('Input Sheet'!$I63,TechNumber,2,FALSE)) ->  | O63: =IF(ISERROR(VLOOKUP('Input Sheet'!$N63,TechNumber,2,FALSE)),"",VLOOKUP('Input Sheet'!$N63,TechNumber,2,FALSE)) ->  | Q63: 920.32 | R63: 6.6 | S63: 717 | T63: =IF(ISERROR(VLOOKUP('Input Sheet'!$S63,TechNumber,2,FALSE)),"",VLOOKUP('Input Sheet'!$S63,TechNumber,2,FALSE)) -> 26 | U63: 171.6 | V63: 156 | W63: 1
B64: 59 | C64: 152790 | D64: 2001 | E64: Safari | F64: 225023 | J64: =IF(ISERROR(VLOOKUP('Input Sheet'!$I64,TechNumber,2,FALSE)),"",VLOOKUP('Input Sheet'!$I64,TechNumber,2,FALSE)) ->  | L64: 591.71 | M64: 2 | N64: 773 | O64: =IF(ISERROR(VLOOKUP('Input Sheet'!$N64,TechNumber,2,FALSE)),"",VLOOKUP('Input Sheet'!$N64,TechNumber,2,FALSE)) -> 30 | P64: 60 | T64: =IF(ISERROR(VLOOKUP('Input Sheet'!$S64,TechNumber,2,FALSE)),"",VLOOKUP('Input Sheet'!$S64,TechNumber,2,FALSE)) ->  | V64: 60 | W64: 2
B65: 60 | C65: 152791 | D65: 2003 | E65: Yukon XL | F65: 151524 | J65: =IF(ISERROR(VLOOKUP('Input Sheet'!$I65,TechNumber,2,FALSE)),"",VLOOKUP('Input Sheet'!$I65,TechNumber,2,FALSE)) ->  | L65: 152.7 | M65: 1.8 | N65: 710 | O65: =IF(ISERROR(VLOOKUP('Input Sheet'!$N65,TechNumber,2,FALSE)),"",VLOOKUP('Input Sheet'!$N65,TechNumber,2,FALSE)) -> 25 | P65: 45 | T65: =IF(ISERROR(VLOOKUP('Input Sheet'!$S65,TechNumber,2,FALSE)),"",VLOOKUP('Input Sheet'!$S65,TechNumber,2,FALSE)) ->  | V65: 30 | W65: 3
B66: 61 | C66: 152792 | D66: 2015 | E66: Sierra 2500HD | F66: 30771 | J66: =IF(ISERROR(VLOOKUP('Input Sheet'!$I66,TechNumber,2,FALSE)),"",VLOOKUP('Input Sheet'!$I66,TechNumber,2,FALSE)) ->  | L66: 583.94 | M66: 2.9 | N66: 717 | O66: =IF(ISERROR(VLOOKUP('Input Sheet'!$N66,TechNumber,2,FALSE)),"",VLOOKUP('Input Sheet'!$N66,TechNumber,2,FALSE)) -> 26 | P66: 75.4 | T66: =IF(ISERROR(VLOOKUP('Input Sheet'!$S66,TechNumber,2,FALSE)),"",VLOOKUP('Input Sheet'!$S66,TechNumber,2,FALSE)) ->  | V66: 110.4 | W66: 4
B67: 62 | C67: 152804 | D67: 2015 | E67: Sierra 2500HD | F67: 58450 | G67: 452.03 | H67: 1.8 | J67: =IF(ISERROR(VLOOKUP('Input Sheet'!$I67,TechNumber,2,FALSE)),"",VLOOKUP('Input Sheet'!$I67,TechNumber,2,FALSE)) ->  | O67: =IF(ISERROR(VLOOKUP('Input Sheet'!$N67,TechNumber,2,FALSE)),"",VLOOKUP('Input Sheet'!$N67,TechNumber,2,FALSE)) ->  | T67: =IF(ISERROR(VLOOKUP('Input Sheet'!$S67,TechNumber,2,FALSE)),"",VLOOKUP('Input Sheet'!$S67,TechNumber,2,FALSE)) ->  | V67: 162.95 | W67: 2
B68: 63 | C68: 152823 | D68: 2008 | E68: PT Cruiser | F68: 67576 | G68: 22.85 | H68: 0.6 | J68: =IF(ISERROR(VLOOKUP('Input Sheet'!$I68,TechNumber,2,FALSE)),"",VLOOKUP('Input Sheet'!$I68,TechNumber,2,FALSE)) ->  | O68: =IF(ISERROR(VLOOKUP('Input Sheet'!$N68,TechNumber,2,FALSE)),"",VLOOKUP('Input Sheet'!$N68,TechNumber,2,FALSE)) ->  | T68: =IF(ISERROR(VLOOKUP('Input Sheet'!$S68,TechNumber,2,FALSE)),"",VLOOKUP('Input Sheet'!$S68,TechNumber,2,FALSE)) ->  | V68: 12.6 | W68: 1
B69: 64 | C69: 152889 | D69: 2014 | E69: Sierra 2500HD | F69: 22662 | G69: 284.46 | H69: 1.4 | J69: =IF(ISERROR(VLOOKUP('Input Sheet'!$I69,TechNumber,2,FALSE)),"",VLOOKUP('Input Sheet'!$I69,TechNumber,2,FALSE)) ->  | O69: =IF(ISERROR(VLOOKUP('Input Sheet'!$N69,TechNumber,2,FALSE)),"",VLOOKUP('Input Sheet'!$N69,TechNumber,2,FALSE)) ->  | T69: =IF(ISERROR(VLOOKUP('Input Sheet'!$S69,TechNumber,2,FALSE)),"",VLOOKUP('Input Sheet'!$S69,TechNumber,2,FALSE)) ->  | V69: 147.95 | W69: 1
B70: 65 | C70: 152894 | D70: 2015 | E70: Yukon | F70: 49725 | G70: 22.85 | H70: 0.6 | J70: =IF(ISERROR(VLOOKUP('Input Sheet'!$I70,TechNumber,2,FALSE)),"",VLOOKUP('Input Sheet'!$I70,TechNumber,2,FALSE)) ->  | K70: =IF(ISERROR(H70*J70),"",H70*J70) ->  | O70: =IF(ISERROR(VLOOKUP('Input Sheet'!$N70,TechNumber,2,FALSE)),"",VLOOKUP('Input Sheet'!$N70,TechNumber,2,FALSE)) ->  | P70: =IF(ISERROR(M70*O70)," ",M70*O70) ->  | T70: =IF(ISERROR(VLOOKUP('Input Sheet'!$S70,TechNumber,2,FALSE)),"",VLOOKUP('Input Sheet'!$S70,TechNumber,2,FALSE)) ->  | U70: =IF(ISERROR(R70*T70),"",R70*T70) ->  | V70: 12.6 | W70: 1
B71: 66 | C71: 152898 | D71: 2016 | E71: Acadia | F71: 32512 | G71: 22.85 | H71: 0.6 | J71: =IF(ISERROR(VLOOKUP('Input Sheet'!$I71,TechNumber,2,FALSE)),"",VLOOKUP('Input Sheet'!$I71,TechNumber,2,FALSE)) ->  | O71: =IF(ISERROR(VLOOKUP('Input Sheet'!$N71,TechNumber,2,FALSE)),"",VLOOKUP('Input Sheet'!$N71,TechNumber,2,FALSE)) ->  | T71: =IF(ISERROR(VLOOKUP('Input Sheet'!$S71,TechNumber,2,FALSE)),"",VLOOKUP('Input Sheet'!$S71,TechNumber,2,FALSE)) ->  | V71: 12.6 | W71: 1
B72: 67 | C72: 152899 | D72: 2015 | E72: Acadia | F72: 47402 | J72: =IF(ISERROR(VLOOKUP('Input Sheet'!$I72,TechNumber,2,FALSE)),"",VLOOKUP('Input Sheet'!$I72,TechNumber,2,FALSE)) ->  | L72: 130 | M72: 0.1 | O72: =IF(ISERROR(VLOOKUP('Input Sheet'!$N72,TechNumber,2,FALSE)),"",VLOOKUP('Input Sheet'!$N72,TechNumber,2,FALSE)) ->  | T72: =IF(ISERROR(VLOOKUP('Input Sheet'!$S72,TechNumber,2,FALSE)),"",VLOOKUP('Input Sheet'!$S72,TechNumber,2,FALSE)) ->  | V72: 13 | W72: 1
B73: 68 | C73: 152902 | D73: 2003 | E73: Yukon XL | F73: 204593 | J73: =IF(ISERROR(VLOOKUP('Input Sheet'!$I73,TechNumber,2,FALSE)),"",VLOOKUP('Input Sheet'!$I73,TechNumber,2,FALSE)) ->  | O73: =IF(ISERROR(VLOOKUP('Input Sheet'!$N73,TechNumber,2,FALSE)),"",VLOOKUP('Input Sheet'!$N73,TechNumber,2,FALSE)) ->  | Q73: 130 | R73: 1 | S73: 735 | T73: =IF(ISERROR(VLOOKUP('Input Sheet'!$S73,TechNumber,2,FALSE)),"",VLOOKUP('Input Sheet'!$S73,TechNumber,2,FALSE)) -> 32 | U73: 32 | V73: 35 | W73: 1
B74: 69 | C74: 152912 | D74: 2014 | E74: sierra 1500 | F74: 81315 | G74: 22.85 | H74: 0.6 | J74: =IF(ISERROR(VLOOKUP('Input Sheet'!$I74,TechNumber,2,FALSE)),"",VLOOKUP('Input Sheet'!$I74,TechNumber,2,FALSE)) ->  | O74: =IF(ISERROR(VLOOKUP('Input Sheet'!$N74,TechNumber,2,FALSE)),"",VLOOKUP('Input Sheet'!$N74,TechNumber,2,FALSE)) ->  | T74: =IF(ISERROR(VLOOKUP('Input Sheet'!$S74,TechNumber,2,FALSE)),"",VLOOKUP('Input Sheet'!$S74,TechNumber,2,FALSE)) ->  | V74: 12.6 | W74: 1
B75: 70 | C75: 152922 | D75: 2014 | E75: Sierra 1500 | F75: 30702 | G75: 292.78 | H75: 1.6 | J75: =IF(ISERROR(VLOOKUP('Input Sheet'!$I75,TechNumber,2,FALSE)),"",VLOOKUP('Input Sheet'!$I75,TechNumber,2,FALSE)) ->  | O75: =IF(ISERROR(VLOOKUP('Input Sheet'!$N75,TechNumber,2,FALSE)),"",VLOOKUP('Input Sheet'!$N75,TechNumber,2,FALSE)) ->  | T75: =IF(ISERROR(VLOOKUP('Input Sheet'!$S75,TechNumber,2,FALSE)),"",VLOOKUP('Input Sheet'!$S75,TechNumber,2,FALSE)) ->  | V75: 15.6 | W75: 1
B76: 71 | C76: 152947 | D76: 2012 | E76: Yukon | F76: 64328 | G76: 393.34 | H76: 1.6 | J76: =IF(ISERROR(VLOOKUP('Input Sheet'!$I76,TechNumber,2,FALSE)),"",VLOOKUP('Input Sheet'!$I76,TechNumber,2,FALSE)) ->  | O76: =IF(ISERROR(VLOOKUP('Input Sheet'!$N76,TechNumber,2,FALSE)),"",VLOOKUP('Input Sheet'!$N76,TechNumber,2,FALSE)) ->  | T76: =IF(ISERROR(VLOOKUP('Input Sheet'!$S76,TechNumber,2,FALSE)),"",VLOOKUP('Input Sheet'!$S76,TechNumber,2,FALSE)) ->  | V76: 15.6 | W76: 1
B77: 72 | C77: 152949 | D77: 2016 | E77: Yukon XL | F77: 32916 | G77: 22.85 | H77: 0.6 | J77: =IF(ISERROR(VLOOKUP('Input Sheet'!$I77,TechNumber,2,FALSE)),"",VLOOKUP('Input Sheet'!$I77,TechNumber,2,FALSE)) ->  | O77: =IF(ISERROR(VLOOKUP('Input Sheet'!$N77,TechNumber,2,FALSE)),"",VLOOKUP('Input Sheet'!$N77,TechNumber,2,FALSE)) ->  | T77: =IF(ISERROR(VLOOKUP('Input Sheet'!$S77,TechNumber,2,FALSE)),"",VLOOKUP('Input Sheet'!$S77,TechNumber,2,FALSE)) ->  | V77: 12.6 | W77: 1
B78: 73 | C78: 152950 | D78: 2009 | E78: Colorado | F78: 92056 | J78: =IF(ISERROR(VLOOKUP('Input Sheet'!$I78,TechNumber,2,FALSE)),"",VLOOKUP('Input Sheet'!$I78,TechNumber,2,FALSE)) ->  | O78: =IF(ISERROR(VLOOKUP('Input Sheet'!$N78,TechNumber,2,FALSE)),"",VLOOKUP('Input Sheet'!$N78,TechNumber,2,FALSE)) ->  | Q78: 195 | R78: 1.5 | S78: 735 | T78: =IF(ISERROR(VLOOKUP('Input Sheet'!$S78,TechNumber,2,FALSE)),"",VLOOKUP('Input Sheet'!$S78,TechNumber,2,FALSE)) -> 32 | U78: 48 | V78: 35 | W78: 1
B79: 74 | C79: 152951 | D79: 2012 | E79: Town & Country | F79: 75979 | G79: 22.85 | H79: 0.6 | J79: =IF(ISERROR(VLOOKUP('Input Sheet'!$I79,TechNumber,2,FALSE)),"",VLOOKUP('Input Sheet'!$I79,TechNumber,2,FALSE)) ->  | O79: =IF(ISERROR(VLOOKUP('Input Sheet'!$N79,TechNumber,2,FALSE)),"",VLOOKUP('Input Sheet'!$N79,TechNumber,2,FALSE)) ->  | T79: =IF(ISERROR(VLOOKUP('Input Sheet'!$S79,TechNumber,2,FALSE)),"",VLOOKUP('Input Sheet'!$S79,TechNumber,2,FALSE)) ->  | V79: 12.6 | W79: 1
B80: 75 | C80: 152963 | D80: 2014 | E80: Acadia | F80: 55821 | G80: 22.85 | H80: 0.6 | J80: =IF(ISERROR(VLOOKUP('Input Sheet'!$I80,TechNumber,2,FALSE)),"",VLOOKUP('Input Sheet'!$I80,TechNumber,2,FALSE)) ->  | O80: =IF(ISERROR(VLOOKUP('Input Sheet'!$N80,TechNumber,2,FALSE)),"",VLOOKUP('Input Sheet'!$N80,TechNumber,2,FALSE)) ->  | T80: =IF(ISERROR(VLOOKUP('Input Sheet'!$S80,TechNumber,2,FALSE)),"",VLOOKUP('Input Sheet'!$S80,TechNumber,2,FALSE)) ->  | V80: 12.6 | W80: 1
B81: 76 | C81: 152973 | D81: 2015 | E81: sierra 1500 | F81: 37437 | J81: =IF(ISERROR(VLOOKUP('Input Sheet'!$I81,TechNumber,2,FALSE)),"",VLOOKUP('Input Sheet'!$I81,TechNumber,2,FALSE)) ->  | L81: 112 | M81: 0.3 | N81: 773 | O81: =IF(ISERROR(VLOOKUP('Input Sheet'!$N81,TechNumber,2,FALSE)),"",VLOOKUP('Input Sheet'!$N81,TechNumber,2,FALSE)) -> 30 | P81: 9 | T81: =IF(ISERROR(VLOOKUP('Input Sheet'!$S81,TechNumber,2,FALSE)),"",VLOOKUP('Input Sheet'!$S81,TechNumber,2,FALSE)) ->  | V81: 6 | W81: 1
B82: 77 | C82: 152982 | D82: 2011 | E82: Acadia | F82: 115834 | J82: =IF(ISERROR(VLOOKUP('Input Sheet'!$I82,TechNumber,2,FALSE)),"",VLOOKUP('Input Sheet'!$I82,TechNumber,2,FALSE)) ->  | L82: 155.21 | M82: 1.1 | N82: 782 | O82: =IF(ISERROR(VLOOKUP('Input Sheet'!$N82,TechNumber,2,FALSE)),"",VLOOKUP('Input Sheet'!$N82,TechNumber,2,FALSE)) ->  | T82: =IF(ISERROR(VLOOKUP('Input Sheet'!$S82,TechNumber,2,FALSE)),"",VLOOKUP('Input Sheet'!$S82,TechNumber,2,FALSE)) ->  | V82: 87.85 | W82: 2
B83: 78 | C83: 152983 | D83: 2011 | E83: Acadia | F83: 146372 | G83: 22.85 | H83: 0.6 | J83: =IF(ISERROR(VLOOKUP('Input Sheet'!$I83,TechNumber,2,FALSE)),"",VLOOKUP('Input Sheet'!$I83,TechNumber,2,FALSE)) ->  | O83: =IF(ISERROR(VLOOKUP('Input Sheet'!$N83,TechNumber,2,FALSE)),"",VLOOKUP('Input Sheet'!$N83,TechNumber,2,FALSE)) ->  | T83: =IF(ISERROR(VLOOKUP('Input Sheet'!$S83,TechNumber,2,FALSE)),"",VLOOKUP('Input Sheet'!$S83,TechNumber,2,FALSE)) ->  | V83: 12.6 | W83: 1
B84: 79 | C84: 152995 | D84: 2009 | E84: Sierra 2500HD | F84: 62770 | J84: =IF(ISERROR(VLOOKUP('Input Sheet'!$I84,TechNumber,2,FALSE)),"",VLOOKUP('Input Sheet'!$I84,TechNumber,2,FALSE)) ->  | L84: 424.06 | M84: 3.3 | O84: =IF(ISERROR(VLOOKUP('Input Sheet'!$N84,TechNumber,2,FALSE)),"",VLOOKUP('Input Sheet'!$N84,TechNumber,2,FALSE)) ->  | T84: =IF(ISERROR(VLOOKUP('Input Sheet'!$S84,TechNumber,2,FALSE)),"",VLOOKUP('Input Sheet'!$S84,TechNumber,2,FALSE)) ->  | V84: 80.5 | W84: 2
B85: 80 | C85: 153009 | D85: 2015 | E85: Sierra 3500 | F85: 24464 | G85: 29.95 | H85: 0.3 | J85: =IF(ISERROR(VLOOKUP('Input Sheet'!$I85,TechNumber,2,FALSE)),"",VLOOKUP('Input Sheet'!$I85,TechNumber,2,FALSE)) ->  | O85: =IF(ISERROR(VLOOKUP('Input Sheet'!$N85,TechNumber,2,FALSE)),"",VLOOKUP('Input Sheet'!$N85,TechNumber,2,FALSE)) ->  | T85: =IF(ISERROR(VLOOKUP('Input Sheet'!$S85,TechNumber,2,FALSE)),"",VLOOKUP('Input Sheet'!$S85,TechNumber,2,FALSE)) ->  | V85: 42.05 | W85: 1
B86: 81 | C86: 153010 | D86: 2011 | E86: Terrain | F86: 80389 | G86: 22.85 | H86: 0.6 | J86: =IF(ISERROR(VLOOKUP('Input Sheet'!$I86,TechNumber,2,FALSE)),"",VLOOKUP('Input Sheet'!$I86,TechNumber,2,FALSE)) ->  | O86: =IF(ISERROR(VLOOKUP('Input Sheet'!$N86,TechNumber,2,FALSE)),"",VLOOKUP('Input Sheet'!$N86,TechNumber,2,FALSE)) ->  | T86: =IF(ISERROR(VLOOKUP('Input Sheet'!$S86,TechNumber,2,FALSE)),"",VLOOKUP('Input Sheet'!$S86,TechNumber,2,FALSE)) ->  | V86: 12.6 | W86: 1
B87: 82 | C87: 153012 | D87: 2016 | E87: Sierra 2500HD | F87: 92526 | J87: =IF(ISERROR(VLOOKUP('Input Sheet'!$I87,TechNumber,2,FALSE)),"",VLOOKUP('Input Sheet'!$I87,TechNumber,2,FALSE)) ->  | L87: 209.14 | M87: 0.9 | O87: =IF(ISERROR(VLOOKUP('Input Sheet'!$N87,TechNumber,2,FALSE)),"",VLOOKUP('Input Sheet'!$N87,TechNumber,2,FALSE)) ->  | T87: =IF(ISERROR(VLOOKUP('Input Sheet'!$S87,TechNumber,2,FALSE)),"",VLOOKUP('Input Sheet'!$S87,TechNumber,2,FALSE)) ->  | V87: 94.95 | W87: 1
B88: 83 | C88: 153013 | D88: 2015 | E88: Sierra 2500HD | F88: 42431 | G88: 121.6 | H88: 0.9 | J88: =IF(ISERROR(VLOOKUP('Input Sheet'!$I88,TechNumber,2,FALSE)),"",VLOOKUP('Input Sheet'!$I88,TechNumber,2,FALSE)) ->  | O88: =IF(ISERROR(VLOOKUP('Input Sheet'!$N88,TechNumber,2,FALSE)),"",VLOOKUP('Input Sheet'!$N88,TechNumber,2,FALSE)) ->  | T88: =IF(ISERROR(VLOOKUP('Input Sheet'!$S88,TechNumber,2,FALSE)),"",VLOOKUP('Input Sheet'!$S88,TechNumber,2,FALSE)) ->  | V88: 32.95 | W88: 1
B89: 84 | C89: 153032 | D89: 2015 | E89: Yukon XL | F89: 55352 | J89: =IF(ISERROR(VLOOKUP('Input Sheet'!$I89,TechNumber,2,FALSE)),"",VLOOKUP('Input Sheet'!$I89,TechNumber,2,FALSE)) ->  | O89: =IF(ISERROR(VLOOKUP('Input Sheet'!$N89,TechNumber,2,FALSE)),"",VLOOKUP('Input Sheet'!$N89,TechNumber,2,FALSE)) ->  | Q89: 653.28 | R89: 2.5 | T89: =IF(ISERROR(VLOOKUP('Input Sheet'!$S89,TechNumber,2,FALSE)),"",VLOOKUP('Input Sheet'!$S89,TechNumber,2,FALSE)) ->  | V89: 78 | W89: 1
B90: 85 | C90: 153040 | D90: 2013 | E90: Cruze | F90: 71780 | G90: 631.05 | H90: 1 | J90: =IF(ISERROR(VLOOKUP('Input Sheet'!$I90,TechNumber,2,FALSE)),"",VLOOKUP('Input Sheet'!$I90,TechNumber,2,FALSE)) ->  | O90: =IF(ISERROR(VLOOKUP('Input Sheet'!$N90,TechNumber,2,FALSE)),"",VLOOKUP('Input Sheet'!$N90,TechNumber,2,FALSE)) ->  | T90: =IF(ISERROR(VLOOKUP('Input Sheet'!$S90,TechNumber,2,FALSE)),"",VLOOKUP('Input Sheet'!$S90,TechNumber,2,FALSE)) ->  | V90: 95 | W90: 1
B91: 86 | C91: 153057 | D91: 2005 | E91: Silverado 2500 | F91: 197835 | J91: =IF(ISERROR(VLOOKUP('Input Sheet'!$I91,TechNumber,2,FALSE)),"",VLOOKUP('Input Sheet'!$I91,TechNumber,2,FALSE)) ->  | O91: =IF(ISERROR(VLOOKUP('Input Sheet'!$N91,TechNumber,2,FALSE)),"",VLOOKUP('Input Sheet'!$N91,TechNumber,2,FALSE)) ->  | Q91: 599.66 | R91: 2.8 | S91: 773 | T91: =IF(ISERROR(VLOOKUP('Input Sheet'!$S91,TechNumber,2,FALSE)),"",VLOOKUP('Input Sheet'!$S91,TechNumber,2,FALSE)) -> 30 | U91: 84 | V91: 45 | W91: 2
B92: 87 | C92: 153060 | D92: 2015 | E92: Sierra 2500HD | F92: 63478 | G92: 360.43 | H92: 1.8 | J92: =IF(ISERROR(VLOOKUP('Input Sheet'!$I92,TechNumber,2,FALSE)),"",VLOOKUP('Input Sheet'!$I92,TechNumber,2,FALSE)) ->  | O92: =IF(ISERROR(VLOOKUP('Input Sheet'!$N92,TechNumber,2,FALSE)),"",VLOOKUP('Input Sheet'!$N92,TechNumber,2,FALSE)) ->  | T92: =IF(ISERROR(VLOOKUP('Input Sheet'!$S92,TechNumber,2,FALSE)),"",VLOOKUP('Input Sheet'!$S92,TechNumber,2,FALSE)) ->  | V92: 46.8 | W92: 2
B93: 88 | C93: 153061 | D93: 2015 | E93: Sierra 2500HD | F93: 63574 | J93: =IF(ISERROR(VLOOKUP('Input Sheet'!$I93,TechNumber,2,FALSE)),"",VLOOKUP('Input Sheet'!$I93,TechNumber,2,FALSE)) ->  | L93: 939.91 | M93: 2 | N93: 717 | O93: =IF(ISERROR(VLOOKUP('Input Sheet'!$N93,TechNumber,2,FALSE)),"",VLOOKUP('Input Sheet'!$N93,TechNumber,2,FALSE)) -> 26 | P93: 52 | T93: =IF(ISERROR(VLOOKUP('Input Sheet'!$S93,TechNumber,2,FALSE)),"",VLOOKUP('Input Sheet'!$S93,TechNumber,2,FALSE)) ->  | V93: 52 | W93: 3
B94: 89 | C94: 153066 | D94: 2015 | E94: Sierra 1500 | F94: 25120 | G94: 224.28 | H94: 1.2 | J94: =IF(ISERROR(VLOOKUP('Input Sheet'!$I94,TechNumber,2,FALSE)),"",VLOOKUP('Input Sheet'!$I94,TechNumber,2,FALSE)) ->  | O94: =IF(ISERROR(VLOOKUP('Input Sheet'!$N94,TechNumber,2,FALSE)),"",VLOOKUP('Input Sheet'!$N94,TechNumber,2,FALSE)) ->  | T94: =IF(ISERROR(VLOOKUP('Input Sheet'!$S94,TechNumber,2,FALSE)),"",VLOOKUP('Input Sheet'!$S94,TechNumber,2,FALSE)) ->  | V94: 87.85 | W94: 2
B95: 90 | C95: 153069 | D95: 2011 | E95: Yukon XL | F95: 62393 | G95: 198.71 | H95: 1 | J95: =IF(ISERROR(VLOOKUP('Input Sheet'!$I95,TechNumber,2,FALSE)),"",VLOOKUP('Input Sheet'!$I95,TechNumber,2,FALSE)) ->  | O95: =IF(ISERROR(VLOOKUP('Input Sheet'!$N95,TechNumber,2,FALSE)),"",VLOOKUP('Input Sheet'!$N95,TechNumber,2,FALSE)) ->  | T95: =IF(ISERROR(VLOOKUP('Input Sheet'!$S95,TechNumber,2,FALSE)),"",VLOOKUP('Input Sheet'!$S95,TechNumber,2,FALSE)) ->  | V95: 26 | W95: 1
B96: 91 | C96: 153079 | D96: 2012 | E96: Cruze | F96: 150476 | G96: 794.11 | H96: 1 | J96: =IF(ISERROR(VLOOKUP('Input Sheet'!$I96,TechNumber,2,FALSE)),"",VLOOKUP('Input Sheet'!$I96,TechNumber,2,FALSE)) ->  | O96: =IF(ISERROR(VLOOKUP('Input Sheet'!$N96,TechNumber,2,FALSE)),"",VLOOKUP('Input Sheet'!$N96,TechNumber,2,FALSE)) ->  | T96: =IF(ISERROR(VLOOKUP('Input Sheet'!$S96,TechNumber,2,FALSE)),"",VLOOKUP('Input Sheet'!$S96,TechNumber,2,FALSE)) ->  | V96: 95 | W96: 1
B97: 92 | C97: 153080 | D97: 2013 | E97: Suburban | F97: 84433 | J97: =IF(ISERROR(VLOOKUP('Input Sheet'!$I97,TechNumber,2,FALSE)),"",VLOOKUP('Input Sheet'!$I97,TechNumber,2,FALSE)) ->  | L97: 230.91 | M97: 1.2 | O97: =IF(ISERROR(VLOOKUP('Input Sheet'!$N97,TechNumber,2,FALSE)),"",VLOOKUP('Input Sheet'!$N97,TechNumber,2,FALSE)) ->  | T97: =IF(ISERROR(VLOOKUP('Input Sheet'!$S97,TechNumber,2,FALSE)),"",VLOOKUP('Input Sheet'!$S97,TechNumber,2,FALSE)) ->  | V97: 25.2 | W97: 2
B98: 93 | C98: 153081 | D98: 2005 | E98: Yukon | F98: 198796 | J98: =IF(ISERROR(VLOOKUP('Input Sheet'!$I98,TechNumber,2,FALSE)),"",VLOOKUP('Input Sheet'!$I98,TechNumber,2,FALSE)) ->  | O98: =IF(ISERROR(VLOOKUP('Input Sheet'!$N98,TechNumber,2,FALSE)),"",VLOOKUP('Input Sheet'!$N98,TechNumber,2,FALSE)) ->  | T98: =IF(ISERROR(VLOOKUP('Input Sheet'!$S98,TechNumber,2,FALSE)),"",VLOOKUP('Input Sheet'!$S98,TechNumber,2,FALSE)) ->  | V98: 133 | W98: 2
B99: 94 | C99: 153089 | D99: 2012 | E99: Acadia | F99: 97424 | G99: 287.2 | H99: 1.3 | J99: =IF(ISERROR(VLOOKUP('Input Sheet'!$I99,TechNumber,2,FALSE)),"",VLOOKUP('Input Sheet'!$I99,TechNumber,2,FALSE)) ->  | O99: =IF(ISERROR(VLOOKUP('Input Sheet'!$N99,TechNumber,2,FALSE)),"",VLOOKUP('Input Sheet'!$N99,TechNumber,2,FALSE)) ->  | Q99: 622.7 | R99: 1.6 | S99: 773 | T99: =IF(ISERROR(VLOOKUP('Input Sheet'!$S99,TechNumber,2,FALSE)),"",VLOOKUP('Input Sheet'!$S99,TechNumber,2,FALSE)) -> 30 | U99: 48 | V99: 30,00 | W99: 1
B100: 95 | C100: 153095 | D100: 2007 | E100: Sierra 1500 | F100: 104414 | G100: 22.85 | H100: 0.6 | J100: =IF(ISERROR(VLOOKUP('Input Sheet'!$I100,TechNumber,2,FALSE)),"",VLOOKUP('Input Sheet'!$I100,TechNumber,2,FALSE)) ->  | O100: =IF(ISERROR(VLOOKUP('Input Sheet'!$N100,TechNumber,2,FALSE)),"",VLOOKUP('Input Sheet'!$N100,TechNumber,2,FALSE)) ->  | T100: =IF(ISERROR(VLOOKUP('Input Sheet'!$S100,TechNumber,2,FALSE)),"",VLOOKUP('Input Sheet'!$S100,TechNumber,2,FALSE)) ->  | V100: 12.6 | W100: 1
B101: 96 | C101: 153128 | D101: 2007 | E101: Envoy | F101: 113072 | J101: =IF(ISERROR(VLOOKUP('Input Sheet'!$I101,TechNumber,2,FALSE)),"",VLOOKUP('Input Sheet'!$I101,TechNumber,2,FALSE)) ->  | L101: 220.73 | M101: 1.6 | O101: =IF(ISERROR(VLOOKUP('Input Sheet'!$N101,TechNumber,2,FALSE)),"",VLOOKUP('Input Sheet'!$N101,TechNumber,2,FALSE)) ->  | T101: =IF(ISERROR(VLOOKUP('Input Sheet'!$S101,TechNumber,2,FALSE)),"",VLOOKUP('Input Sheet'!$S101,TechNumber,2,FALSE)) ->  | V101: 76 | W101: 2
B102: 97 | C102: 153131 | D102: 2011 | E102: Acadia | F102: 100097 | J102: =IF(ISERROR(VLOOKUP('Input Sheet'!$I102,TechNumber,2,FALSE)),"",VLOOKUP('Input Sheet'!$I102,TechNumber,2,FALSE)) ->  | L102: 543.81 | M102: 2.6 | N102: 757 | O102: =IF(ISERROR(VLOOKUP('Input Sheet'!$N102,TechNumber,2,FALSE)),"",VLOOKUP('Input Sheet'!$N102,TechNumber,2,FALSE)) -> 14 | P102: 36.4 | T102: =IF(ISERROR(VLOOKUP('Input Sheet'!$S102,TechNumber,2,FALSE)),"",VLOOKUP('Input Sheet'!$S102,TechNumber,2,FALSE)) ->  | V102: 70 | W102: 2
B103: 98 | C103: 153141 | D103: 2014 | E103: Equinox | F103: 71379 | G103: 112.95 | H103: 1 | J103: =IF(ISERROR(VLOOKUP('Input Sheet'!$I103,TechNumber,2,FALSE)),"",VLOOKUP('Input Sheet'!$I103,TechNumber,2,FALSE)) ->  | O103: =IF(ISERROR(VLOOKUP('Input Sheet'!$N103,TechNumber,2,FALSE)),"",VLOOKUP('Input Sheet'!$N103,TechNumber,2,FALSE)) ->  | T103: =IF(ISERROR(VLOOKUP('Input Sheet'!$S103,TechNumber,2,FALSE)),"",VLOOKUP('Input Sheet'!$S103,TechNumber,2,FALSE)) ->  | V103: 35 | W103: 1
B104: 99 | C104: 153152 | D104: 2014 | E104: Terrain | F104: 7101 | G104: 22.85 | H104: 0.6 | J104: =IF(ISERROR(VLOOKUP('Input Sheet'!$I104,TechNumber,2,FALSE)),"",VLOOKUP('Input Sheet'!$I104,TechNumber,2,FALSE)) ->  | O104: =IF(ISERROR(VLOOKUP('Input Sheet'!$N104,TechNumber,2,FALSE)),"",VLOOKUP('Input Sheet'!$N104,TechNumber,2,FALSE)) ->  | T104: =IF(ISERROR(VLOOKUP('Input Sheet'!$S104,TechNumber,2,FALSE)),"",VLOOKUP('Input Sheet'!$S104,TechNumber,2,FALSE)) ->  | V104: 12.6 | W104: 1
B105: 100 | C105: 153156 | D105: 2003 | E105: Sierra 1500 | F105: 18170 | G105: 22.85 | H105: 0.6 | J105: =IF(ISERROR(VLOOKUP('Input Sheet'!$I105,TechNumber,2,FALSE)),"",VLOOKUP('Input Sheet'!$I105,TechNumber,2,FALSE)) ->  | K105: =IF(ISERROR(H105*J105),"",H105*J105) ->  | O105: =IF(ISERROR(VLOOKUP('Input Sheet'!$N105,TechNumber,2,FALSE)),"",VLOOKUP('Input Sheet'!$N105,TechNumber,2,FALSE)) ->  | P105: =IF(ISERROR(M105*O105)," ",M105*O105) ->  | T105: =IF(ISERROR(VLOOKUP('Input Sheet'!$S105,TechNumber,2,FALSE)),"",VLOOKUP('Input Sheet'!$S105,TechNumber,2,FALSE)) ->  | U105: =IF(ISERROR(R105*T105),"",R105*T105) ->  | V105: 12.6 | W105: 1
E106: Totals | F106: Totals | G106: =SUM(G6:G105) -> 5207.29 | H106: =SUM(H6:H105) -> 41.1 | K106: =SUM(K6:K105) -> 301.5 | L106: =SUM(L6:L105) -> 5843.88 | M106: =SUM(M6:M105) -> 35.3 | P106: 610.7 | Q106: 29191.39 | R106: 90.4 | U106: 2386.55 | V106: 5166.18 | W106: =COUNTIF(W5:W105,1) -> 67
E107: Number of RO's in Sample | G107: Competative Labor | L107: Maintenance Labor | Q107: Repair Labor | V107: Total Cost of Labor | W107: One Item Repair Order
G108: Labor Sales | H108: Flat Rate Hours | I108: Technican Number | J108: Pay Per FRH | K108: Labor Cost | L108: Labor Sales | M108: Flat Rate Hours | N108: Technican Number | O108: Pay Per FRH | P108: Labor Cost | Q108: Labor Sales | R108: Flat Rate Hours | S108: Technican Number | T108: Pay Per FRH | U108: Labor Cost

Sheet RO Report 1-50
A1: Repair Order Analysis
E2: Competitive Labor | J2: Maintenance Labor | O2: Repair Labor
A3: Dealership | T3: Total Cost of Labor | U3: One Item Repair Order
A4: RO Number | E4: Labor Sales | F4: Flat Rate Hours | G4: Technician Number | H4: Pay Per FRH | I4: Labor Cost | J4: Labor Sales | K4: Flat Rate Hours | L4: Technician Number | M4: Pay Per FRH | N4: Labor Cost | O4: Labor Sales | P4: Flat Rate Hours | Q4: Technician Number | R4: Pay Per FRH | S4: Labor Cost
B5: Year | C5: Model | D5: Mileage
A6: ='Input Sheet'!C6 -> 150745 | B6: ='Input Sheet'!D6 -> 2011 | C6: ='Input Sheet'!E6 -> lacrosse | D6: ='Input Sheet'!F6 -> 68808 | E6: ='Input Sheet'!G6 -> 22.85 | F6: ='Input Sheet'!H6 -> 0.6 | G6: ='Input Sheet'!I6 -> 753 | H6: ='Input Sheet'!J6 -> 15.5 | I6: =F6*H6 -> 9.3 | J6: 0 | K6: 0 | L6: ='Input Sheet'!I6 -> 753 | M6: ='Input Sheet'!J6 -> 15.5 | N6: =K6*M6 -> 0 | O6: ='Input Sheet'!Q6 -> 0 | P6: ='Input Sheet'!R6 -> 0 | Q6: ='Input Sheet'!S6 -> 0 | R6: ='Input Sheet'!T6 ->  | S6: =P6*R6 ->  | T6: ='Input Sheet'!V6 -> 9.3 | U6: ='Input Sheet'!W6 -> 1
A7: ='Input Sheet'!C7 -> 150747 | B7: ='Input Sheet'!D7 -> 2013 | C7: ='Input Sheet'!E7 -> sierra | D7: ='Input Sheet'!F7 -> 57642 | E7: ='Input Sheet'!G7 -> 32.95 | F7: ='Input Sheet'!H6 -> 0.6 | G7: ='Input Sheet'!#REF! ->  | H7: ='Input Sheet'!#REF! ->  | I7: =F7*H7 ->  | J7: 0 | K7: 0 | L7: ='Input Sheet'!#REF! ->  | M7: ='Input Sheet'!#REF! ->  | N7: =K7*M7 ->  | O7: ='Input Sheet'!Q7 -> 0 | P7: ='Input Sheet'!R7 -> 0 | Q7: ='Input Sheet'!S7 -> 0 | R7: ='Input Sheet'!T7 ->  | S7: =P7*R7 ->  | T7: ='Input Sheet'!V7 -> 9.3 | U7: ='Input Sheet'!W7 -> 1
A8: ='Input Sheet'!C8 -> 150753 | B8: ='Input Sheet'!D8 -> 2003 | C8: ='Input Sheet'!E8 -> envoy | D8: ='Input Sheet'!F8 -> 195234 | E8: ='Input Sheet'!G8 -> 22.85 | F8: ='Input Sheet'!H7 -> 0.6 | G8: ='Input Sheet'!#REF! ->  | H8: ='Input Sheet'!#REF! ->  | J8: 0 | K8: 0 | L8: ='Input Sheet'!#REF! ->  | M8: ='Input Sheet'!#REF! ->  | O8: ='Input Sheet'!Q8 -> 0 | P8: ='Input Sheet'!R8 -> 0 | Q8: ='Input Sheet'!S8 -> 0 | R8: ='Input Sheet'!T8 ->  | T8: ='Input Sheet'!V8 -> 9.3 | U8: ='Input Sheet'!W8 -> 1
A9: ='Input Sheet'!C9 -> 150756 | B9: ='Input Sheet'!D9 -> 2016 | C9: ='Input Sheet'!E9 -> terrain | D9: ='Input Sheet'!F9 -> 13866 | E9: ='Input Sheet'!G9 -> 22.85 | F9: ='Input Sheet'!H8 -> 0.6 | G9: ='Input Sheet'!#REF! ->  | H9: ='Input Sheet'!#REF! ->  | J9: 0 | K9: 0 | L9: ='Input Sheet'!#REF! ->  | M9: ='Input Sheet'!#REF! ->  | O9: ='Input Sheet'!Q9 -> 0 | P9: ='Input Sheet'!R9 -> 0 | Q9: ='Input Sheet'!S9 -> 0 | R9: ='Input Sheet'!T9 ->  | T9: ='Input Sheet'!V9 -> 9.3 | U9: ='Input Sheet'!W9 -> 1
A10: ='Input Sheet'!C10 -> 150599 | B10: ='Input Sheet'!D10 -> 2009 | C10: ='Input Sheet'!E10 -> acadia | D10: ='Input Sheet'!F10 -> 122461 | E10: ='Input Sheet'!G10 -> 0 | F10: ='Input Sheet'!H10 -> 0 | G10: ='Input Sheet'!I10 -> 0 | H10: ='Input Sheet'!J10 ->  | J10: ='Input Sheet'!L10 -> 0 | K10: ='Input Sheet'!M10 -> 0 | L10: ='Input Sheet'!I10 -> 0 | M10: ='Input Sheet'!J10 ->  | O10: ='Input Sheet'!Q10 -> 260 | P10: ='Input Sheet'!R10 -> 2 | Q10: ='Input Sheet'!S10 -> 735 | R10: ='Input Sheet'!T10 -> 32 | S10: 64 | T10: ='Input Sheet'!V10 -> 64 | U10: ='Input Sheet'!W10 -> 1
A11: ='Input Sheet'!C11 -> 150603 | B11: ='Input Sheet'!D11 -> 2012 | C11: ='Input Sheet'!E11 -> acadia | D11: ='Input Sheet'!F11 -> 36209 | E11: ='Input Sheet'!G11 -> 22.85 | F11: ='Input Sheet'!H10 -> 0 | G11: ='Input Sheet'!#REF! ->  | H11: ='Input Sheet'!#REF! ->  | J11: 0 | K11: 0 | L11: ='Input Sheet'!#REF! ->  | M11: ='Input Sheet'!#REF! ->  | O11: ='Input Sheet'!Q11 -> 0 | P11: ='Input Sheet'!R11 -> 0 | Q11: ='Input Sheet'!S11 -> 0 | R11: ='Input Sheet'!T11 ->  | T11: ='Input Sheet'!V11 -> 12.6 | U11: ='Input Sheet'!W11 -> 1
A12: ='Input Sheet'!C12 -> 150612 | B12: ='Input Sheet'!D12 -> 2016 | C12: ='Input Sheet'!E12 -> yukon | D12: ='Input Sheet'!F12 -> 21875 | E12: ='Input Sheet'!G12 -> 22.85 | F12: ='Input Sheet'!R11 -> 0 | G12: ='Input Sheet'!#REF! ->  | H12: ='Input Sheet'!#REF! ->  | J12: 0 | K12: 0 | L12: ='Input Sheet'!#REF! ->  | M12: ='Input Sheet'!#REF! ->  | O12: ='Input Sheet'!Q12 -> 0 | P12: ='Input Sheet'!R12 -> 0 | Q12: ='Input Sheet'!S12 -> 0 | R12: ='Input Sheet'!T12 ->  | T12: ='Input Sheet'!V12 -> 15.6 | U12: ='Input Sheet'!W12 -> 1
A13: ='Input Sheet'!C13 -> 150615 | B13: ='Input Sheet'!D13 -> 2016 | C13: ='Input Sheet'!E13 -> canyon | D13: ='Input Sheet'!F13 -> 22702 | E13: ='Input Sheet'!G13 -> 32.95 | F13: ='Input Sheet'!R12 -> 0 | G13: ='Input Sheet'!#REF! ->  | H13: ='Input Sheet'!#REF! ->  | J13: 0 | K13: 0 | L13: ='Input Sheet'!#REF! ->  | M13: ='Input Sheet'!#REF! ->  | O13: ='Input Sheet'!Q13 -> 0 | P13: ='Input Sheet'!R13 -> 0 | Q13: ='Input Sheet'!S13 -> 0 | R13: ='Input Sheet'!T13 ->  | T13: ='Input Sheet'!V13 -> 12.6 | U13: ='Input Sheet'!W13 -> 1
A14: ='Input Sheet'!C14 -> 150626 | B14: ='Input Sheet'!D14 -> 2016 | C14: ='Input Sheet'!E14 -> yukon | D14: ='Input Sheet'!F14 -> 21258 | E14: ='Input Sheet'!G14 -> 22.85 | F14: ='Input Sheet'!H15 -> 0 | G14: ='Input Sheet'!#REF! ->  | H14: ='Input Sheet'!#REF! ->  | J14: 0 | K14: 0 | L14: ='Input Sheet'!#REF! ->  | M14: ='Input Sheet'!#REF! ->  | O14: ='Input Sheet'!Q14 -> 0 | P14: ='Input Sheet'!R14 -> 0 | Q14: ='Input Sheet'!S14 -> 0 | R14: ='Input Sheet'!T14 ->  | T14: ='Input Sheet'!V14 -> 12.6 | U14: ='Input Sheet'!W14 -> 1
A15: ='Input Sheet'!C15 -> 150631 | B15: ='Input Sheet'!D15 -> 2011 | C15: ='Input Sheet'!E15 -> lacrosse | D15: ='Input Sheet'!F15 -> 87727 | E15: ='Input Sheet'!G15 -> 0 | F15: ='Input Sheet'!H15 -> 0 | G15: ='Input Sheet'!I15 -> 0 | H15: ='Input Sheet'!J15 ->  | J15: 217.85 | K15: 2.1 | L15: ='Input Sheet'!I15 -> 0 | M15: ='Input Sheet'!J15 ->  | O15: ='Input Sheet'!L15 -> 217.85 | P15: ='Input Sheet'!M15 -> 2.1 | Q15: ='Input Sheet'!N15 -> 717 | R15: ='Input Sheet'!O15 -> 26 | S15: 54.6 | T15: ='Input Sheet'!V15 -> 54.6 | U15: ='Input Sheet'!W15 -> 2
A16: ='Input Sheet'!C16 -> 150635 | B16: ='Input Sheet'!D16 -> 2013 | C16: ='Input Sheet'!E16 -> verano | D16: ='Input Sheet'!F16 -> 16172 | E16: ='Input Sheet'!G16 -> 22.85 | F16: ='Input Sheet'!H16 -> 0.6 | G16: ='Input Sheet'!I16 -> 753 | H16: ='Input Sheet'!J16 -> 15.5 | I16: 9.3 | J16: ='Input Sheet'!L16 -> 0 | K16: ='Input Sheet'!M16 -> 0 | L16: ='Input Sheet'!I16 -> 753 | M16: ='Input Sheet'!J16 -> 15.5 | N16: 0 | O16: ='Input Sheet'!Q16 -> 0 | P16: ='Input Sheet'!R16 -> 0 | Q16: ='Input Sheet'!S16 -> 0 | R16: ='Input Sheet'!T16 ->  | T16: ='Input Sheet'!V16 -> 9.3 | U16: ='Input Sheet'!W16 -> 1
A17: 150601 | B17: ='Input Sheet'!D17 -> 2007 | C17: ='Input Sheet'!E17 -> yukon | D17: ='Input Sheet'!F17 -> 169149 | E17: ='Input Sheet'!Q17 -> 559 | F17: ='Input Sheet'!R17 -> 4.3 | G17: ='Input Sheet'!S17 -> 735 | H17: ='Input Sheet'!T17 -> 32 | I17: 137.6 | J17: ='Input Sheet'!L17 -> 0 | K17: ='Input Sheet'!M17 -> 0 | L17: ='Input Sheet'!S17 -> 735 | M17: ='Input Sheet'!T17 -> 32 | N17: 0 | O17: 559 | P17: 4.9 | Q17: ='Input Sheet'!#REF! ->  | R17: ='Input Sheet'!#REF! ->  | T17: ='Input Sheet'!V17 -> 137.6 | U17: ='Input Sheet'!W17 -> 1
A18: ='Input Sheet'!C18 -> 150648 | B18: ='Input Sheet'!D18 -> 2014 | C18: ='Input Sheet'!E18 -> sierra | D18: ='Input Sheet'!F18 -> 75207 | E18: ='Input Sheet'!G18 -> 0 | F18: ='Input Sheet'!H18 -> 0 | G18: ='Input Sheet'!I18 -> 0 | H18: ='Input Sheet'!J18 ->  | J18: ='Input Sheet'!L18 -> 0 | K18: ='Input Sheet'!M18 -> 0 | L18: ='Input Sheet'!I18 -> 0 | M18: ='Input Sheet'!J18 ->  | O18: ='Input Sheet'!Q18 -> 152.85 | P18: ='Input Sheet'!R18 -> 1.6 | Q18: ='Input Sheet'!S18 -> 753 | R18: ='Input Sheet'!T18 -> 15.5 | S18: 24.8 | T18: ='Input Sheet'!V18 -> 24.8 | U18: ='Input Sheet'!W18 -> 2
A19: ='Input Sheet'!C19 -> 150649 | B19: ='Input Sheet'!D19 -> 2015 | C19: ='Input Sheet'!E19 -> yukon xl | D19: ='Input Sheet'!F19 -> 42330 | E19: ='Input Sheet'!G19 -> 22.85 | F19: ='Input Sheet'!H19 -> 0.6 | G19: ='Input Sheet'!I19 -> 753 | H19: ='Input Sheet'!J19 -> 15.5 | I19: 9.3 | J19: ='Input Sheet'!L19 -> 0 | K19: ='Input Sheet'!M19 -> 0 | L19: ='Input Sheet'!I19 -> 753 | M19: ='Input Sheet'!J19 -> 15.5 | N19: 0 | O19: ='Input Sheet'!Q19 -> 0 | P19: ='Input Sheet'!R19 -> 0 | Q19: ='Input Sheet'!S19 -> 0 | R19: ='Input Sheet'!T19 ->  | T19: ='Input Sheet'!V19 -> 9.3 | U19: ='Input Sheet'!W19 -> 1
A20: ='Input Sheet'!C20 -> 150653 | B20: ='Input Sheet'!D20 -> 2007 | C20: ='Input Sheet'!E20 -> yukon | D20: ='Input Sheet'!F20 -> 47031 | E20: ='Input Sheet'!G20 -> 0 | F20: ='Input Sheet'!H20 -> 0 | G20: ='Input Sheet'!I20 -> 0 | H20: ='Input Sheet'!J20 ->  | J20: ='Input Sheet'!L20 -> 118.1 | K20: ='Input Sheet'!M20 -> 0.4 | L20: ='Input Sheet'!I20 -> 0 | M20: ='Input Sheet'!J20 ->  | O20: ='Input Sheet'!Q20 -> 0 | P20: ='Input Sheet'!R20 -> 0 | Q20: ='Input Sheet'!S20 -> 0 | R20: ='Input Sheet'!T20 ->  | T20: ='Input Sheet'!V20 -> 10.4 | U20: ='Input Sheet'!W20 -> 2
A21: ='Input Sheet'!C21 -> 150667 | B21: ='Input Sheet'!D21 -> 2008 | C21: ='Input Sheet'!E21 -> lacrosse | D21: ='Input Sheet'!F21 -> 53223 | E21: ='Input Sheet'!G21 -> 22.85 | F21: ='Input Sheet'!H21 -> 0.6 | G21: ='Input Sheet'!I21 -> 753 | H21: ='Input Sheet'!J21 -> 15.5 | I21: 9.3 | J21: ='Input Sheet'!L21 -> 0 | K21: ='Input Sheet'!M21 -> 0 | L21: ='Input Sheet'!I21 -> 753 | M21: ='Input Sheet'!J21 -> 15.5 | N21: 0 | O21: ='Input Sheet'!Q21 -> 0 | P21: ='Input Sheet'!R21 -> 0 | Q21: ='Input Sheet'!S21 -> 0 | R21: ='Input Sheet'!T21 ->  | T21: ='Input Sheet'!V21 -> 9.3 | U21: ='Input Sheet'!W21 -> 1
A22: ='Input Sheet'!C22 -> 150684 | B22: ='Input Sheet'!D22 -> 2015 | C22: ='Input Sheet'!E22 -> acadia | D22: ='Input Sheet'!F22 -> 40511 | E22: ='Input Sheet'!G22 -> 22.85 | F22: ='Input Sheet'!H22 -> 0.6 | G22: ='Input Sheet'!I22 -> 717 | H22: ='Input Sheet'!J22 -> 26 | I22: 15.6 | J22: ='Input Sheet'!L22 -> 0 | K22: ='Input Sheet'!M22 -> 0 | L22: ='Input Sheet'!I22 -> 717 | M22: ='Input Sheet'!J22 -> 26 | N22: 0 | O22: ='Input Sheet'!Q22 -> 0 | P22: ='Input Sheet'!R22 -> 0 | Q22: ='Input Sheet'!S22 -> 0 | R22: ='Input Sheet'!T22 ->  | T22: ='Input Sheet'!V22 -> 15.6 | U22: ='Input Sheet'!W22 -> 1
A23: ='Input Sheet'!C23 -> 150669 | B23: ='Input Sheet'!D23 -> 2002 | C23: ='Input Sheet'!E23 -> lesabre | D23: ='Input Sheet'!F23 -> 100000 | E23: ='Input Sheet'!G23 -> 0 | F23: ='Input Sheet'!H23 -> 0 | G23: ='Input Sheet'!I23 -> 0 | H23: ='Input Sheet'!J23 ->  | J23: ='Input Sheet'!L23 -> 0 | K23: ='Input Sheet'!M23 -> 0 | L23: ='Input Sheet'!I23 -> 0 | M23: ='Input Sheet'!J23 ->  | O23: ='Input Sheet'!Q23 -> 334.85 | P23: ='Input Sheet'!R23 -> 3 | Q23: ='Input Sheet'!S23 -> 753 | R23: ='Input Sheet'!T23 -> 15.5 | S23: 46.5 | T23: ='Input Sheet'!V23 -> 46.5 | U23: ='Input Sheet'!W23 -> 3
A24: ='Input Sheet'!C24 -> 150691 | B24: ='Input Sheet'!D24 -> 2012 | C24: ='Input Sheet'!E24 -> verano | D24: ='Input Sheet'!F24 -> 25085 | E24: ='Input Sheet'!G24 -> 22.85 | F24: ='Input Sheet'!H24 -> 0.6 | G24: ='Input Sheet'!I24 -> 753 | H24: ='Input Sheet'!J24 -> 15.5 | I24: 9.3 | J24: ='Input Sheet'!L24 -> 0 | K24: ='Input Sheet'!M24 -> 0 | L24: ='Input Sheet'!I24 -> 753 | M24: ='Input Sheet'!J24 -> 15.5 | N24: 0 | O24: ='Input Sheet'!Q24 -> 0 | P24: ='Input Sheet'!R24 -> 0 | Q24: ='Input Sheet'!S24 -> 0 | R24: ='Input Sheet'!T24 ->  | T24: ='Input Sheet'!V24 -> 9.3 | U24: ='Input Sheet'!W24 -> 1
A25: ='Input Sheet'!C25 -> 150703 | B25: ='Input Sheet'!D25 -> 2007 | C25: ='Input Sheet'!E25 -> ion | D25: ='Input Sheet'!F25 -> 66314 | E25: ='Input Sheet'!G25 -> 22.85 | F25: ='Input Sheet'!H25 -> 0.6 | G25: ='Input Sheet'!I25 -> 753 | H25: ='Input Sheet'!J25 -> 15.5 | I25: 9.3 | J25: ='Input Sheet'!L25 -> 0 | K25: ='Input Sheet'!M25 -> 0 | L25: ='Input Sheet'!I25 -> 753 | M25: ='Input Sheet'!J25 -> 15.5 | N25: 0 | O25: ='Input Sheet'!Q25 -> 0 | P25: ='Input Sheet'!R25 -> 0 | Q25: ='Input Sheet'!S25 -> 0 | R25: ='Input Sheet'!T25 ->  | T25: ='Input Sheet'!V25 -> 9.3 | U25: ='Input Sheet'!W25 -> 1
A26: ='Input Sheet'!C26 -> 150706 | B26: ='Input Sheet'!D26 -> 2015 | C26: ='Input Sheet'!E26 -> yukon xl | D26: ='Input Sheet'!F26 -> 47906 | E26: ='Input Sheet'!G26 -> 22.85 | F26: ='Input Sheet'!H26 -> 0.6 | G26: ='Input Sheet'!I26 -> 753 | H26: ='Input Sheet'!J26 -> 15.5 | I26: 9.3 | J26: ='Input Sheet'!L26 -> 0 | K26: ='Input Sheet'!M26 -> 0 | L26: ='Input Sheet'!I26 -> 753 | M26: ='Input Sheet'!J26 -> 15.5 | N26: 0 | O26: ='Input Sheet'!Q26 -> 0 | P26: ='Input Sheet'!R26 -> 0 | Q26: ='Input Sheet'!S26 -> 0 | R26: ='Input Sheet'!T26 ->  | T26: ='Input Sheet'!V26 -> 9.3 | U26: ='Input Sheet'!W26 -> 1
A27: ='Input Sheet'!C27 -> 150629 | B27: ='Input Sheet'!D27 -> 2010 | C27: ='Input Sheet'!E27 -> tahoe | D27: ='Input Sheet'!F27 -> 108447 | E27: ='Input Sheet'!G27 -> 0 | F27: ='Input Sheet'!H27 -> 0 | G27: ='Input Sheet'!I27 -> 0 | H27: ='Input Sheet'!J27 ->  | J27: ='Input Sheet'!L27 -> 0 | K27: ='Input Sheet'!M27 -> 0 | L27: ='Input Sheet'!I27 -> 0 | M27: ='Input Sheet'!J27 ->  | O27: ='Input Sheet'!Q27 -> 585 | P27: ='Input Sheet'!R27 -> 4.5 | Q27: ='Input Sheet'!S27 -> 743 | R27: ='Input Sheet'!T27 -> 21 | S27: 94.5 | T27: ='Input Sheet'!V27 -> 94.5 | U27: ='Input Sheet'!W27 -> 2
A28: ='Input Sheet'!C28 -> 150700 | B28: ='Input Sheet'!D28 -> 2004 | C28: ='Input Sheet'!E28 -> yukon | D28: ='Input Sheet'!F28 -> 133816 | E28: ='Input Sheet'!G28 -> 22.85 | F28: ='Input Sheet'!H28 -> 0.6 | G28: ='Input Sheet'!I28 -> 753 | H28: ='Input Sheet'!J28 -> 15.5 | I28: 9.3 | J28: ='Input Sheet'!L28 -> 0 | K28: ='Input Sheet'!M28 -> 0 | L28: ='Input Sheet'!I28 -> 753 | M28: ='Input Sheet'!J28 -> 15.5 | N28: 0 | O28: ='Input Sheet'!Q28 -> 0 | P28: ='Input Sheet'!R28 -> 0 | Q28: ='Input Sheet'!S28 -> 0 | R28: ='Input Sheet'!T28 ->  | T28: ='Input Sheet'!V28 -> 9.3 | U28: ='Input Sheet'!W28 -> 1
A29: ='Input Sheet'!C29 -> 150714 | B29: ='Input Sheet'!D29 -> 2015 | C29: ='Input Sheet'!E29 -> sierra 2500 | D29: ='Input Sheet'!F29 -> 32953 | E29: ='Input Sheet'!G29 -> 0 | F29: ='Input Sheet'!H29 -> 0 | G29: ='Input Sheet'!I29 -> 0 | H29: ='Input Sheet'!J29 ->  | J29: ='Input Sheet'!L29 -> 147.95 | K29: ='Input Sheet'!M29 -> 2.6 | L29: ='Input Sheet'!I29 -> 0 | M29: ='Input Sheet'!J29 ->  | O29: ='Input Sheet'!Q29 -> 0 | P29: ='Input Sheet'!R29 -> 0 | Q29: ='Input Sheet'!S29 -> 0 | R29: ='Input Sheet'!T29 ->  | T29: ='Input Sheet'!V29 -> 54.6 | U29: ='Input Sheet'!W29 -> 2
A30: ='Input Sheet'!C30 -> 150726 | B30: ='Input Sheet'!D30 -> 2015 | C30: ='Input Sheet'!E30 -> terrain | D30: ='Input Sheet'!F30 -> 44895 | E30: ='Input Sheet'!G30 -> 0 | F30: ='Input Sheet'!H30 -> 0 | G30: ='Input Sheet'!I30 -> 0 | H30: ='Input Sheet'!J30 ->  | J30: ='Input Sheet'!L30 -> 69.98 | K30: ='Input Sheet'!M30 -> 1 | L30: ='Input Sheet'!I30 -> 0 | M30: ='Input Sheet'!J30 ->  | O30: ='Input Sheet'!Q30 -> 0 | P30: ='Input Sheet'!R30 -> 0 | Q30: ='Input Sheet'!S30 -> 0 | R30: ='Input Sheet'!T30 ->  | T30: ='Input Sheet'!V30 -> 21 | U30: ='Input Sheet'!W30 -> 1
A31: ='Input Sheet'!C31 -> 150657 | B31: ='Input Sheet'!D31 -> 2011 | C31: ='Input Sheet'!E31 -> sierra 2500 | D31: ='Input Sheet'!F31 -> 89668 | E31: ='Input Sheet'!G31 -> 0 | F31: ='Input Sheet'!H31 -> 0 | G31: ='Input Sheet'!I31 -> 0 | H31: ='Input Sheet'!J31 ->  | J31: ='Input Sheet'!L31 -> 0 | K31: ='Input Sheet'!M31 -> 0 | L31: ='Input Sheet'!I31 -> 0 | M31: ='Input Sheet'!J31 ->  | O31: ='Input Sheet'!Q31 -> 201.9 | P31: ='Input Sheet'!R31 -> 2.1 | Q31: ='Input Sheet'!S31 -> 753 | R31: ='Input Sheet'!T31 -> 15.5 | S31: 32.55 | T31: ='Input Sheet'!V31 -> 32.55 | U31: ='Input Sheet'!W31 -> 3
A32: ='Input Sheet'!C32 -> 150668 | B32: ='Input Sheet'!D32 -> 2009 | C32: ='Input Sheet'!E32 -> sierra | D32: ='Input Sheet'!F32 -> 138570 | E32: ='Input Sheet'!G32 -> 0 | F32: ='Input Sheet'!H32 -> 0 | G32: ='Input Sheet'!I32 -> 0 | H32: ='Input Sheet'!J32 ->  | J32: ='Input Sheet'!L32 -> 0 | K32: ='Input Sheet'!M32 -> 0 | L32: ='Input Sheet'!I32 -> 0 | M32: ='Input Sheet'!J32 ->  | O32: ='Input Sheet'!Q32 -> 347.85 | P32: ='Input Sheet'!R32 -> 3.1 | Q32: ='Input Sheet'!S32 -> 743 | R32: ='Input Sheet'!T32 -> 21 | S32: 65.1 | T32: ='Input Sheet'!V32 -> 65.1 | U32: ='Input Sheet'!W32 -> 3
A33: ='Input Sheet'!C33 -> 150733 | B33: ='Input Sheet'!D33 -> 2011 | C33: ='Input Sheet'!E33 -> acadia | D33: ='Input Sheet'!F33 -> 97540 | E33: ='Input Sheet'!G33 -> 0 | F33: ='Input Sheet'!H33 -> 0 | G33: ='Input Sheet'!I33 -> 0 | H33: ='Input Sheet'!J33 ->  | J33: ='Input Sheet'!L33 -> 0 | K33: ='Input Sheet'!M33 -> 0 | L33: ='Input Sheet'!I33 -> 0 | M33: ='Input Sheet'!J33 ->  | O33: ='Input Sheet'!Q33 -> 182 | P33: ='Input Sheet'!R33 -> 1.4 | Q33: ='Input Sheet'!S33 -> 743 | R33: ='Input Sheet'!T33 -> 21 | S33: 29.4 | T33: ='Input Sheet'!V33 -> 29.4 | U33: ='Input Sheet'!W33 -> 1
A34: ='Input Sheet'!C34 -> 150744 | B34: ='Input Sheet'!D34 -> 2016 | C34: ='Input Sheet'!E34 -> sierra | D34: ='Input Sheet'!F34 -> 23304 | E34: ='Input Sheet'!G34 -> 22.85 | F34: ='Input Sheet'!H34 -> 0.6 | G34: ='Input Sheet'!I34 -> 753 | H34: ='Input Sheet'!J34 -> 15.5 | I34: 9.3 | J34: ='Input Sheet'!L34 -> 0 | K34: ='Input Sheet'!M34 -> 0 | L34: ='Input Sheet'!I34 -> 753 | M34: ='Input Sheet'!J34 -> 15.5 | N34: 0 | O34: ='Input Sheet'!Q34 -> 0 | P34: ='Input Sheet'!R34 -> 0 | Q34: ='Input Sheet'!S34 -> 0 | R34: ='Input Sheet'!T34 ->  | T34: ='Input Sheet'!V34 -> 9.3 | U34: ='Input Sheet'!W34 -> 1
A35: ='Input Sheet'!C35 -> 150746 | B35: ='Input Sheet'!D35 -> 2002 | C35: ='Input Sheet'!E35 -> sierra | D35: ='Input Sheet'!F35 -> 48805 | E35: ='Input Sheet'!G35 -> 22.85 | F35: ='Input Sheet'!H35 -> 0.6 | G35: ='Input Sheet'!I35 -> 753 | H35: ='Input Sheet'!J35 -> 15.5 | I35: 9.3 | J35: ='Input Sheet'!L35 -> 0 | K35: ='Input Sheet'!M35 -> 0 | L35: ='Input Sheet'!I35 -> 753 | M35: ='Input Sheet'!J35 -> 15.5 | N35: 0 | O35: ='Input Sheet'!Q35 -> 0 | P35: ='Input Sheet'!R35 -> 0 | Q35: ='Input Sheet'!S35 -> 0 | R35: ='Input Sheet'!T35 ->  | T35: ='Input Sheet'!V35 -> 9.3 | U35: ='Input Sheet'!W35 -> 1
A36: ='Input Sheet'!C36 -> 150751 | B36: ='Input Sheet'!D36 -> 2015 | C36: ='Input Sheet'!E36 -> acadia | D36: ='Input Sheet'!F36 -> 28585 | E36: ='Input Sheet'!G36 -> 22.85 | F36: ='Input Sheet'!H36 -> 0.6 | G36: ='Input Sheet'!I36 -> 753 | H36: ='Input Sheet'!J36 -> 15.5 | I36: 9.3 | J36: ='Input Sheet'!L36 -> 0 | K36: ='Input Sheet'!M36 -> 0 | L36: ='Input Sheet'!I36 -> 753 | M36: ='Input Sheet'!J36 -> 15.5 | N36: 0 | O36: ='Input Sheet'!Q36 -> 0 | P36: ='Input Sheet'!R36 -> 0 | Q36: ='Input Sheet'!S36 -> 0 | R36: ='Input Sheet'!T36 ->  | T36: ='Input Sheet'!V36 -> 9.3 | U36: ='Input Sheet'!W36 -> 1
A37: ='Input Sheet'!C37 -> 150755 | B37: ='Input Sheet'!D37 -> 2013 | C37: ='Input Sheet'!E37 -> escalade | D37: ='Input Sheet'!F37 -> 51530 | E37: ='Input Sheet'!G37 -> 22.85 | F37: ='Input Sheet'!H37 -> 0.6 | G37: ='Input Sheet'!I37 -> 753 | H37: ='Input Sheet'!J37 -> 15.5 | I37: 9.3 | J37: ='Input Sheet'!L37 -> 0 | K37: ='Input Sheet'!M37 -> 0 | L37: ='Input Sheet'!I37 -> 753 | M37: ='Input Sheet'!J37 -> 15.5 | N37: 0 | O37: ='Input Sheet'!Q37 -> 0 | P37: ='Input Sheet'!R37 -> 0 | Q37: ='Input Sheet'!S37 -> 0 | R37: ='Input Sheet'!T37 ->  | T37: ='Input Sheet'!V37 -> 9.3 | U37: ='Input Sheet'!W37 -> 1
A38: ='Input Sheet'!C38 -> 150758 | B38: ='Input Sheet'!D38 -> 2015 | C38: ='Input Sheet'!E38 -> verano | D38: ='Input Sheet'!F38 -> 38428 | E38: ='Input Sheet'!G38 -> 22.85 | F38: ='Input Sheet'!H38 -> 0.6 | G38: ='Input Sheet'!I38 -> 753 | H38: ='Input Sheet'!J38 -> 15.5 | I38: 9.3 | J38: ='Input Sheet'!L38 -> 0 | K38: ='Input Sheet'!M38 -> 0 | L38: ='Input Sheet'!I38 -> 753 | M38: ='Input Sheet'!J38 -> 15.5 | N38: 0 | O38: ='Input Sheet'!Q38 -> 0 | P38: ='Input Sheet'!R38 -> 0 | Q38: ='Input Sheet'!S38 -> 0 | R38: ='Input Sheet'!T38 ->  | T38: ='Input Sheet'!V38 -> 9.3 | U38: ='Input Sheet'!W38 -> 1
A39: ='Input Sheet'!C39 -> 150760 | B39: ='Input Sheet'!D39 -> 2009 | C39: ='Input Sheet'!E39 -> sierra | D39: ='Input Sheet'!F39 -> 23230 | E39: ='Input Sheet'!G39 -> 22.85 | F39: ='Input Sheet'!H39 -> 0.6 | G39: ='Input Sheet'!I39 -> 753 | H39: ='Input Sheet'!J39 -> 15.5 | I39: 9.3 | J39: ='Input Sheet'!L39 -> 0 | K39: ='Input Sheet'!M39 -> 0 | L39: ='Input Sheet'!I39 -> 753 | M39: ='Input Sheet'!J39 -> 15.5 | N39: 0 | O39: ='Input Sheet'!Q39 -> 0 | P39: ='Input Sheet'!R39 -> 0 | Q39: ='Input Sheet'!S39 -> 0 | R39: ='Input Sheet'!T39 ->  | T39: ='Input Sheet'!V39 -> 9.3 | U39: ='Input Sheet'!W39 -> 1
A40: ='Input Sheet'!C40 -> 150763 | B40: ='Input Sheet'!D40 -> 2016 | C40: ='Input Sheet'!E40 -> emcore | D40: ='Input Sheet'!F40 -> 16509 | E40: ='Input Sheet'!G40 -> 22.85 | F40: ='Input Sheet'!H40 -> 0.6 | G40: ='Input Sheet'!I40 -> 753 | H40: ='Input Sheet'!J40 -> 15.5 | I40: 9.3 | J40: ='Input Sheet'!L40 -> 0 | K40: ='Input Sheet'!M40 -> 0 | L40: ='Input Sheet'!I40 -> 753 | M40: ='Input Sheet'!J40 -> 15.5 | N40: 0 | O40: ='Input Sheet'!Q40 -> 0 | P40: ='Input Sheet'!R40 -> 0 | Q40: ='Input Sheet'!S40 -> 0 | R40: ='Input Sheet'!T40 ->  | T40: ='Input Sheet'!V40 -> 9.3 | U40: ='Input Sheet'!W40 -> 1
A41: ='Input Sheet'!C41 -> 150764 | B41: ='Input Sheet'!D41 -> 2009 | C41: ='Input Sheet'!E41 -> yukon | D41: ='Input Sheet'!F41 -> 135281 | E41: ='Input Sheet'!G41 -> 0 | F41: ='Input Sheet'!H41 -> 0 | G41: ='Input Sheet'!I41 -> 0 | H41: ='Input Sheet'!J41 ->  | J41: ='Input Sheet'!L41 -> 282.85 | K41: ='Input Sheet'!M41 -> 2.6 | L41: ='Input Sheet'!I41 -> 0 | M41: ='Input Sheet'!J41 ->  | O41: ='Input Sheet'!Q41 -> 0 | P41: ='Input Sheet'!R41 -> 0 | Q41: ='Input Sheet'!S41 -> 0 | R41: ='Input Sheet'!T41 ->  | T41: ='Input Sheet'!V41 -> 40.3 | U41: ='Input Sheet'!W41 -> 2
A42: ='Input Sheet'!C42 -> 150775 | B42: ='Input Sheet'!D42 -> 2015 | C42: ='Input Sheet'!E42 -> yukon xl | D42: ='Input Sheet'!F42 -> 29452 | E42: ='Input Sheet'!G42 -> 0 | F42: ='Input Sheet'!H42 -> 0 | G42: ='Input Sheet'!I42 -> 0 | H42: ='Input Sheet'!J42 ->  | J42: ='Input Sheet'!L42 -> 260 | K42: ='Input Sheet'!M42 -> 2 | L42: ='Input Sheet'!I42 -> 0 | M42: ='Input Sheet'!J42 ->  | O42: ='Input Sheet'!Q42 -> 0 | P42: ='Input Sheet'!R42 -> 0 | Q42: ='Input Sheet'!S42 -> 0 | R42: ='Input Sheet'!T42 ->  | T42: ='Input Sheet'!V42 -> 52 | U42: ='Input Sheet'!W42 -> 1
A43: ='Input Sheet'!C43 -> 150771 | B43: ='Input Sheet'!D43 -> 2004 | C43: ='Input Sheet'!E43 -> sierra 2500 | D43: ='Input Sheet'!F43 -> 83059 | E43: ='Input Sheet'!G43 -> 0 | F43: ='Input Sheet'!H43 -> 0 | G43: ='Input Sheet'!I43 -> 0 | H43: ='Input Sheet'!J43 ->  | J43: ='Input Sheet'!L43 -> 0 | K43: ='Input Sheet'!M43 -> 0 | L43: ='Input Sheet'!I43 -> 0 | M43: ='Input Sheet'!J43 ->  | O43: ='Input Sheet'!Q43 -> 438.85 | P43: ='Input Sheet'!R43 -> 3.8 | Q43: ='Input Sheet'!S43 -> 753 | R43: ='Input Sheet'!T43 -> 15.5 | S43: 58.9 | T43: ='Input Sheet'!V43 -> 58.9 | U43: ='Input Sheet'!W43 -> 3
A44: ='Input Sheet'!C44 -> 150778 | B44: ='Input Sheet'!D44 -> 2015 | C44: ='Input Sheet'!E44 -> sierra | D44: ='Input Sheet'!F44 -> 67885 | E44: ='Input Sheet'!G44 -> 0 | F44: ='Input Sheet'!H44 -> 0 | G44: ='Input Sheet'!I44 -> 0 | H44: ='Input Sheet'!J44 ->  | J44: ='Input Sheet'!L44 -> 0 | K44: ='Input Sheet'!M44 -> 0 | L44: ='Input Sheet'!I44 -> 0 | M44: ='Input Sheet'!J44 ->  | O44: ='Input Sheet'!Q44 -> 130 | P44: ='Input Sheet'!R44 -> 1 | Q44: ='Input Sheet'!S44 -> 735 | R44: ='Input Sheet'!T44 -> 32 | S44: 32 | T44: ='Input Sheet'!V44 -> 32 | U44: ='Input Sheet'!W44 -> 1
A45: ='Input Sheet'!C45 -> 150818 | B45: ='Input Sheet'!D45 -> 2013 | C45: ='Input Sheet'!E45 -> cts | D45: ='Input Sheet'!F45 -> 33936 | E45: ='Input Sheet'!G45 -> 37.95 | F45: ='Input Sheet'!H45 -> 0.6 | G45: ='Input Sheet'!I45 -> 753 | H45: ='Input Sheet'!J45 -> 15.5 | I45: 9.3 | J45: ='Input Sheet'!L45 -> 0 | K45: ='Input Sheet'!M45 -> 0 | L45: ='Input Sheet'!I45 -> 753 | M45: ='Input Sheet'!J45 -> 15.5 | N45: 0 | O45: ='Input Sheet'!Q45 -> 0 | P45: ='Input Sheet'!R45 -> 0 | Q45: ='Input Sheet'!S45 -> 0 | R45: ='Input Sheet'!T45 ->  | T45: ='Input Sheet'!V45 -> 9.3 | U45: ='Input Sheet'!W45 -> 1
A46: ='Input Sheet'!C46 -> 150824 | B46: ='Input Sheet'!D46 -> 2003 | C46: ='Input Sheet'!E46 -> rendezvous | D46: ='Input Sheet'!F46 -> 67918 | E46: ='Input Sheet'!G46 -> 0 | F46: ='Input Sheet'!H46 -> 0 | G46: ='Input Sheet'!I46 -> 0 | H46: ='Input Sheet'!J46 ->  | J46: ='Input Sheet'!L46 -> 152.85 | K46: ='Input Sheet'!M46 -> 1.6 | L46: ='Input Sheet'!I46 -> 0 | M46: ='Input Sheet'!J46 ->  | O46: ='Input Sheet'!Q46 -> 0 | P46: ='Input Sheet'!R46 -> 0 | Q46: ='Input Sheet'!S46 -> 0 | R46: ='Input Sheet'!T46 ->  | T46: ='Input Sheet'!V46 -> 24.8 | U46: ='Input Sheet'!W46 -> 2
A47: ='Input Sheet'!C47 -> 150837 | B47: ='Input Sheet'!D47 -> 2013 | C47: ='Input Sheet'!E47 -> lacrosse | D47: ='Input Sheet'!F47 -> 23705 | E47: ='Input Sheet'!G47 -> 62.5 | F47: ='Input Sheet'!H47 -> 0.6 | G47: ='Input Sheet'!I47 -> 753 | H47: ='Input Sheet'!J47 -> 15.5 | I47: 9.3 | J47: ='Input Sheet'!L47 -> 0 | K47: ='Input Sheet'!M47 -> 0 | L47: ='Input Sheet'!I47 -> 753 | M47: ='Input Sheet'!J47 -> 15.5 | N47: 0 | O47: ='Input Sheet'!Q47 -> 0 | P47: ='Input Sheet'!R47 -> 0 | Q47: ='Input Sheet'!S47 -> 0 | R47: ='Input Sheet'!T47 ->  | T47: ='Input Sheet'!V47 -> 9.3 | U47: ='Input Sheet'!W47 -> 1
A48: ='Input Sheet'!C48 -> 150840 | B48: ='Input Sheet'!D48 -> 2012 | C48: ='Input Sheet'!E48 -> yukon | D48: ='Input Sheet'!F48 -> 60278 | E48: ='Input Sheet'!G48 -> 22.85 | F48: ='Input Sheet'!H48 -> 0.6 | G48: ='Input Sheet'!I48 -> 753 | H48: ='Input Sheet'!J48 -> 15.5 | I48: 9.3 | J48: ='Input Sheet'!L48 -> 0 | K48: ='Input Sheet'!M48 -> 0 | L48: ='Input Sheet'!I48 -> 753 | M48: ='Input Sheet'!J48 -> 15.5 | N48: 0 | O48: ='Input Sheet'!Q48 -> 0 | P48: ='Input Sheet'!R48 -> 0 | Q48: ='Input Sheet'!S48 -> 0 | R48: ='Input Sheet'!T48 ->  | T48: ='Input Sheet'!V48 -> 9.3 | U48: ='Input Sheet'!W48 -> 1
A49: ='Input Sheet'!C49 -> 150795 | B49: ='Input Sheet'!D49 -> 2001 | C49: ='Input Sheet'!E49 -> sierra | D49: ='Input Sheet'!F49 -> 252286 | E49: ='Input Sheet'!G49 -> 0 | F49: ='Input Sheet'!H49 -> 0 | G49: ='Input Sheet'!I49 -> 0 | H49: ='Input Sheet'!J49 ->  | J49: ='Input Sheet'!L49 -> 0 | K49: ='Input Sheet'!M49 -> 0 | L49: ='Input Sheet'!I49 -> 0 | M49: ='Input Sheet'!J49 ->  | O49: ='Input Sheet'!Q49 -> 234 | P49: ='Input Sheet'!R49 -> 1.8 | Q49: ='Input Sheet'!S49 -> 735 | R49: ='Input Sheet'!T49 -> 32 | S49: 57.6 | T49: ='Input Sheet'!V49 -> 57.6 | U49: ='Input Sheet'!W49 -> 1
A50: ='Input Sheet'!C50 -> 150835 | B50: ='Input Sheet'!D50 -> 2007 | C50: ='Input Sheet'!E50 -> hhr | D50: ='Input Sheet'!F50 -> 57059 | E50: ='Input Sheet'!G50 -> 12.6 | F50: ='Input Sheet'!H50 -> 0.6 | G50: ='Input Sheet'!I50 -> 753 | H50: ='Input Sheet'!J50 -> 15.5 | I50: 9.3 | J50: ='Input Sheet'!L50 -> 0 | K50: ='Input Sheet'!M50 -> 0 | L50: ='Input Sheet'!I50 -> 753 | M50: ='Input Sheet'!J50 -> 15.5 | N50: 0 | O50: ='Input Sheet'!Q50 -> 0 | P50: ='Input Sheet'!R50 -> 0 | Q50: ='Input Sheet'!S50 -> 0 | R50: ='Input Sheet'!T50 ->  | T50: ='Input Sheet'!V50 -> 9.3 | U50: ='Input Sheet'!W50 -> 1
A51: ='Input Sheet'!C51 -> 150842 | B51: ='Input Sheet'!D51 -> 2015 | C51: ='Input Sheet'!E51 -> acadia | D51: ='Input Sheet'!D51 -> 2015 | E51: ='Input Sheet'!G51 -> 22.85 | F51: ='Input Sheet'!H51 -> 0.6 | G51: ='Input Sheet'!I51 -> 753 | H51: ='Input Sheet'!J51 -> 15.5 | I51: =#REF!*H51 ->  | J51: ='Input Sheet'!L51 -> 0 | K51: ='Input Sheet'!M51 -> 0 | L51: ='Input Sheet'!I51 -> 753 | M51: ='Input Sheet'!J51 -> 15.5 | N51: 0 | O51: ='Input Sheet'!Q51 -> 0 | P51: ='Input Sheet'!R51 -> 0 | Q51: ='Input Sheet'!S51 -> 0 | R51: ='Input Sheet'!T51 ->  | T51: ='Input Sheet'!V51 -> 9.3 | U51: ='Input Sheet'!W51 -> 1
A52: ='Input Sheet'!C52 -> 150844 | B52: ='Input Sheet'!D52 -> 2015 | C52: ='Input Sheet'!E52 -> terrain | D52: ='Input Sheet'!F52 -> 71988 | E52: ='Input Sheet'!G52 -> 0 | F52: ='Input Sheet'!H52 -> 0 | G52: ='Input Sheet'!I99 -> 0 | H52: ='Input Sheet'!J99 ->  | J52: ='Input Sheet'!L52 -> 118.1 | K52: ='Input Sheet'!M52 -> 1.6 | L52: ='Input Sheet'!I99 -> 0 | M52: ='Input Sheet'!J99 ->  | O52: ='Input Sheet'!Q52 -> 0 | P52: ='Input Sheet'!R52 -> 0 | Q52: ='Input Sheet'!S99 -> 773 | R52: ='Input Sheet'!T99 -> 30 | S52: 0 | T52: ='Input Sheet'!V52 -> 41.6 | U52: ='Input Sheet'!W52 -> 2
A53: ='Input Sheet'!C53 -> 150847 | B53: ='Input Sheet'!D53 -> 2016 | C53: ='Input Sheet'!E53 -> yukon | D53: ='Input Sheet'!F53 -> 24025 | E53: ='Input Sheet'!G53 -> 22.85 | F53: ='Input Sheet'!H53 -> 0.6 | G53: ='Input Sheet'!I100 -> 0 | H53: ='Input Sheet'!J100 ->  | J53: ='Input Sheet'!L53 -> 0 | K53: ='Input Sheet'!M53 -> 0 | L53: ='Input Sheet'!I100 -> 0 | M53: ='Input Sheet'!J100 ->  | O53: ='Input Sheet'!Q53 -> 0 | P53: ='Input Sheet'!R53 -> 0 | Q53: ='Input Sheet'!S100 -> 0 | R53: ='Input Sheet'!T100 ->  | T53: ='Input Sheet'!V53 -> 9.3 | U53: ='Input Sheet'!W53 -> 1
A54: 150850 | B54: 1996 | C54: sierra 3500 | D54: 151130 | O54: 15521.83 | P54: 20.6 | T54: 700 | U54: 3
A55: ='Input Sheet'!C54 -> 150854 | B55: ='Input Sheet'!D54 -> 2012 | C55: ='Input Sheet'!E54 -> sierra | D55: ='Input Sheet'!F54 -> 58312 | E55: ='Input Sheet'!G54 -> 22.85 | F55: ='Input Sheet'!H54 -> 0.6 | G55: ='Input Sheet'!I101 -> 0 | H55: ='Input Sheet'!J101 ->  | I55: =F55*H55 ->  | J55: ='Input Sheet'!L54 -> 0 | K55: ='Input Sheet'!M54 -> 0 | L55: ='Input Sheet'!I101 -> 0 | M55: ='Input Sheet'!J101 ->  | N55: =K55*M55 ->  | O55: ='Input Sheet'!Q54 -> 0 | P55: ='Input Sheet'!R54 -> 0 | Q55: ='Input Sheet'!S101 -> 0 | R55: ='Input Sheet'!T101 ->  | S55: =P55*R55 ->  | T55: ='Input Sheet'!V54 -> 9.3 | U55: ='Input Sheet'!W54 -> 1
A56: RO's 1-50 | D56: Totals | E56: =SUM(E6:E55) -> 1309.2 | F56: =SUM(F6:F55) -> 19.9 | I56: =SUM(I6:I55) ->  | J56: =SUM(J6:J55) -> 1367.68 | K56: =SUM(K6:K55) -> 13.9 | L56: =SUM(L6:L55) ->  | M56: =SUM(M6:M55) ->  | N56: =SUM(N6:N55) ->  | O56: =SUM(O6:O55) -> 19165.98 | P56: =SUM(P6:P55) -> 51.9 | S56: =SUM(S6:S55) ->  | T56: =SUM(T6:T55) -> 1943.75 | U56: =COUNTIF(U5:U55,1) -> 37
A57: Date of Study: | E57: C Labor | J57: M Labor | O57: R Labor | T57: Total Cost of Labor | U57: One Item Repair Order
A58: Study Compiled by | E58: Labor Sales | F58: Flat Rate Hours | G58: Technician Number | H58: Pay Per FRH | I58: Labor Cost | J58: Labor Sales | K58: Flat Rate Hours | L58: Technician Number | M58: Pay Per FRH | N58: Labor Cost | O58: Labor Sales | P58: Flat Rate Hours | Q58: Technician Number | R58: Pay Per FRH | S58: Labor Cost
T65: `

Sheet RO Report 51-100
A1: Repair Order Analysis
E2: Competitive Labor | J2: Maintenance Labor | O2: Repair Labor
A3: Dealership | T3: Total Cost of Labor | U3: One Item Repair Order
A4: RO Number | E4: Labor Sales | F4: Flat Rate Hours | G4: Technician Number | H4: Pay Per FRH | I4: Labor Cost | J4: Labor Sales | K4: Flat Rate Hours | L4: Technician Number | M4: Pay Per FRH | N4: Labor Cost | O4: Labor Sales | P4: Flat Rate Hours | Q4: Technician Number | R4: Pay Per FRH | S4: Labor Cost
B5: Year | C5: Model | D5: Mileage
A6: 151870 | B6: 2001 | C6: corvette | D6: 82756 | E6: ='Input Sheet'!G56 -> 0 | F6: ='Input Sheet'!H56 -> 0 | G6: ='Input Sheet'!I56 -> 0 | H6: ='Input Sheet'!J56 ->  | I6: =F6*H6 ->  | J6: ='Input Sheet'!L56 -> 0 | K6: ='Input Sheet'!M56 -> 0 | L6: ='Input Sheet'!N56 -> 0 | M6: ='Input Sheet'!O56 ->  | N6: =K6*M6 ->  | O6: 74.85 | P6: 0.8 | Q6: ='Input Sheet'!S56 -> 735 | R6: ='Input Sheet'!T56 -> 32 | S6: =P6*R6 -> 25.6 | T6: 28 | U6: 3
A7: 152414* | B7: 2014 | C7: sierra 1500 | D7: 54400 | E7: ='Input Sheet'!G57 -> 0 | F7: ='Input Sheet'!H57 -> 0 | G7: ='Input Sheet'!I57 -> 0 | H7: ='Input Sheet'!J57 ->  | J7: ='Input Sheet'!L57 -> 0 | K7: ='Input Sheet'!M57 -> 0 | L7: ='Input Sheet'!N57 -> 0 | M7: ='Input Sheet'!O57 ->  | O7: 2054.64 | P7: 2.7 | Q7: ='Input Sheet'!S57 -> 735 | R7: ='Input Sheet'!T57 -> 32 | S7: 86.4 | T7: 94.5 | U7: 4
A8: 152548 | B8: 2006 | C8: yukon xl | D8: 179745 | E8: ='Input Sheet'!G58 -> 0 | F8: ='Input Sheet'!H58 -> 0 | G8: ='Input Sheet'!I58 -> 0 | H8: ='Input Sheet'!J58 ->  | J8: ='Input Sheet'!L58 -> 0 | K8: ='Input Sheet'!M58 -> 0 | L8: ='Input Sheet'!N58 -> 0 | M8: ='Input Sheet'!O58 ->  | O8: 1066.18 | P8: 6.5 | Q8: ='Input Sheet'!S58 -> 735 | R8: ='Input Sheet'!T58 -> 32 | S8: 208 | T8: 227.5 | U8: 4
A9: 152555 | B9: 2007 | C9: Hummer H3 | D9: 113405 | E9: 0 | F9: 0 | G9: ='Input Sheet'!I59 -> 0 | H9: ='Input Sheet'!J59 ->  | J9: ='Input Sheet'!L59 -> 0 | K9: ='Input Sheet'!M59 -> 0 | L9: ='Input Sheet'!N59 -> 0 | M9: ='Input Sheet'!O59 ->  | O9: 1188.88 | P9: 8.1 | Q9: ='Input Sheet'!S59 -> 743 | R9: ='Input Sheet'!T59 -> 21 | S9: 170.1 | T9: 157.5 | U9: 4
A10: 152677 | B10: 2014 | C10: Camaro | D10: 61516 | E10: 0 | F10: 0 | G10: ='Input Sheet'!I60 -> 0 | H10: ='Input Sheet'!J60 ->  | J10: 182.08 | K10: 1.6 | L10: ='Input Sheet'!N60 -> 743 | M10: ='Input Sheet'!O60 -> 21 | N10: 33.6 | O10: ='Input Sheet'!Q60 -> 0 | P10: ='Input Sheet'!R60 -> 0 | Q10: ='Input Sheet'!S60 -> 0 | R10: ='Input Sheet'!T60 ->  | T10: 182.08 | U10: 3
A11: 152736 | B11: 2012 | C11: Yukon XL | D11: 78856 | E11: 0 | F11: 0 | G11: ='Input Sheet'!I61 -> 0 | H11: ='Input Sheet'!J61 ->  | J11: 0 | K11: 0 | L11: ='Input Sheet'!N61 -> 0 | M11: ='Input Sheet'!O61 ->  | O11: 1286.96 | P11: 5.6 | Q11: ='Input Sheet'!S61 -> 735 | R11: ='Input Sheet'!T61 -> 32 | S11: 179.2 | T11: 196 | U11: 4
A12: 152745 | B12: 2005 | C12: Yukon | D12: 149595 | E12: ='Input Sheet'!G62 -> 0 | F12: ='Input Sheet'!H62 -> 0 | G12: ='Input Sheet'!I62 -> 0 | H12: ='Input Sheet'!J62 ->  | J12: ='Input Sheet'!L62 -> 0 | K12: ='Input Sheet'!M62 -> 0 | L12: ='Input Sheet'!N62 -> 0 | M12: ='Input Sheet'!O62 ->  | O12: 1450.79 | P12: 1.5 | Q12: ='Input Sheet'!S62 -> 770 | R12: ='Input Sheet'!T62 -> 21 | S12: 31.5 | T12: 195 | U12: 1
A13: 152770 | B13: 2016 | C13: Canyon | D13: 17468 | E13: 0 | F13: 0 | G13: ='Input Sheet'!I63 -> 0 | H13: ='Input Sheet'!J63 ->  | J13: ='Input Sheet'!L63 -> 0 | K13: ='Input Sheet'!M63 -> 0 | L13: ='Input Sheet'!N63 -> 0 | M13: ='Input Sheet'!O63 ->  | O13: 920.32 | P13: 6.6 | Q13: ='Input Sheet'!S63 -> 717 | R13: ='Input Sheet'!T63 -> 26 | S13: 171.6 | T13: 156 | U13: 1
A14: 152790 | B14: 2001 | C14: Safari | D14: 225023 | E14: ='Input Sheet'!G64 -> 0 | F14: ='Input Sheet'!H64 -> 0 | G14: ='Input Sheet'!I64 -> 0 | H14: ='Input Sheet'!J64 ->  | J14: 591.71 | K14: 2 | L14: ='Input Sheet'!N64 -> 773 | M14: ='Input Sheet'!O64 -> 30 | N14: 60 | O14: ='Input Sheet'!Q64 -> 0 | P14: ='Input Sheet'!R64 -> 0 | Q14: ='Input Sheet'!S64 -> 0 | R14: ='Input Sheet'!T64 ->  | T14: 60 | U14: 2
A15: 152791 | B15: 2003 | C15: Yukon XL | D15: 151524 | E15: 0 | F15: 0 | G15: ='Input Sheet'!I65 -> 0 | H15: ='Input Sheet'!J65 ->  | J15: 152.7 | K15: 1.8 | L15: ='Input Sheet'!N65 -> 710 | M15: ='Input Sheet'!O65 -> 25 | N15: 45 | O15: ='Input Sheet'!Q65 -> 0 | P15: ='Input Sheet'!R65 -> 0 | Q15: ='Input Sheet'!S65 -> 0 | R15: ='Input Sheet'!T65 ->  | T15: 30 | U15: 3
A16: 152792 | B16: 2015 | C16: Sierra 2500HD | D16: 30771 | E16: 0 | F16: 0 | G16: ='Input Sheet'!I66 -> 0 | H16: ='Input Sheet'!J66 ->  | J16: 583.94 | K16: 2.9 | L16: ='Input Sheet'!N66 -> 717 | M16: ='Input Sheet'!O66 -> 26 | N16: 75.4 | O16: ='Input Sheet'!Q66 -> 0 | P16: ='Input Sheet'!R66 -> 0 | Q16: ='Input Sheet'!S66 -> 0 | R16: ='Input Sheet'!T66 ->  | T16: 110.4 | U16: 4
A17: 152804 | B17: 2015 | C17: Sierra 2500HD | D17: 58450 | E17: 452.03 | F17: 1.8 | G17: ='Input Sheet'!I67 -> 0 | H17: ='Input Sheet'!J67 ->  | J17: ='Input Sheet'!L67 -> 0 | K17: ='Input Sheet'!M67 -> 0 | L17: ='Input Sheet'!N67 -> 0 | M17: ='Input Sheet'!O67 ->  | O17: ='Input Sheet'!Q67 -> 0 | P17: ='Input Sheet'!R67 -> 0 | Q17: ='Input Sheet'!S67 -> 0 | R17: ='Input Sheet'!T67 ->  | T17: 162.95 | U17: 2
A18: 152823 | B18: 2008 | C18: PT Cruiser | D18: 67576 | E18: 22.85 | F18: 0.6 | G18: ='Input Sheet'!I68 -> 0 | H18: ='Input Sheet'!J68 ->  | J18: ='Input Sheet'!L68 -> 0 | K18: ='Input Sheet'!M68 -> 0 | L18: ='Input Sheet'!N68 -> 0 | M18: ='Input Sheet'!O68 ->  | O18: ='Input Sheet'!Q68 -> 0 | P18: ='Input Sheet'!R68 -> 0 | Q18: ='Input Sheet'!S68 -> 0 | R18: ='Input Sheet'!T68 ->  | T18: 12.6 | U18: 1
A19: 152889 | B19: 2014 | C19: Sierra 2500HD | D19: 22662 | E19: 284.46 | F19: 1.4 | G19: ='Input Sheet'!I69 -> 0 | H19: ='Input Sheet'!J69 ->  | J19: ='Input Sheet'!L69 -> 0 | K19: ='Input Sheet'!M69 -> 0 | L19: ='Input Sheet'!N69 -> 0 | M19: ='Input Sheet'!O69 ->  | O19: ='Input Sheet'!Q69 -> 0 | P19: ='Input Sheet'!R69 -> 0 | Q19: ='Input Sheet'!S69 -> 0 | R19: ='Input Sheet'!T69 ->  | T19: 147.95 | U19: 1
A20: 152894 | B20: 2015 | C20: Yukon | D20: 49725 | E20: 22.85 | F20: 0.6 | G20: ='Input Sheet'!I70 -> 0 | H20: ='Input Sheet'!J70 ->  | J20: ='Input Sheet'!L70 -> 0 | K20: ='Input Sheet'!M70 -> 0 | L20: ='Input Sheet'!N70 -> 0 | M20: ='Input Sheet'!O70 ->  | O20: ='Input Sheet'!Q70 -> 0 | P20: ='Input Sheet'!R70 -> 0 | Q20: ='Input Sheet'!S70 -> 0 | R20: ='Input Sheet'!T70 ->  | T20: 12.6 | U20: 1
A21: 152898 | B21: 2016 | C21: Acadia | D21: 32512 | E21: 22.85 | F21: 0.6 | G21: ='Input Sheet'!I71 -> 0 | H21: ='Input Sheet'!J71 ->  | J21: ='Input Sheet'!L71 -> 0 | K21: ='Input Sheet'!M71 -> 0 | L21: ='Input Sheet'!N71 -> 0 | M21: ='Input Sheet'!O71 ->  | O21: ='Input Sheet'!Q71 -> 0 | P21: ='Input Sheet'!R71 -> 0 | Q21: ='Input Sheet'!S71 -> 0 | R21: ='Input Sheet'!T71 ->  | T21: 12.6 | U21: 1
A22: 152899 | B22: 2015 | C22: Acadia | D22: 47402 | E22: ='Input Sheet'!G72 -> 0 | F22: ='Input Sheet'!H72 -> 0 | G22: ='Input Sheet'!I72 -> 0 | H22: ='Input Sheet'!J72 ->  | J22: 130 | K22: 0.1 | L22: ='Input Sheet'!N72 -> 0 | M22: ='Input Sheet'!O72 ->  | O22: ='Input Sheet'!Q72 -> 0 | P22: ='Input Sheet'!R72 -> 0 | Q22: ='Input Sheet'!S72 -> 0 | R22: ='Input Sheet'!T72 ->  | T22: 13 | U22: 1
A23: 152902 | B23: 2003 | C23: Yukon XL | D23: 204593 | E23: ='Input Sheet'!G73 -> 0 | F23: ='Input Sheet'!H73 -> 0 | G23: ='Input Sheet'!I73 -> 0 | H23: ='Input Sheet'!J73 ->  | J23: ='Input Sheet'!L73 -> 0 | K23: ='Input Sheet'!M73 -> 0 | L23: ='Input Sheet'!N73 -> 0 | M23: ='Input Sheet'!O73 ->  | O23: 130 | P23: 1 | Q23: ='Input Sheet'!S73 -> 735 | R23: ='Input Sheet'!T73 -> 32 | S23: 32 | T23: 35 | U23: 1
A24: 152912 | B24: 2014 | C24: sierra 1500 | D24: 81315 | E24: 22.85 | F24: 0.6 | G24: ='Input Sheet'!I74 -> 0 | H24: ='Input Sheet'!J74 ->  | J24: ='Input Sheet'!L74 -> 0 | K24: ='Input Sheet'!M74 -> 0 | L24: ='Input Sheet'!N74 -> 0 | M24: ='Input Sheet'!O74 ->  | O24: ='Input Sheet'!Q74 -> 0 | P24: ='Input Sheet'!R74 -> 0 | Q24: ='Input Sheet'!S74 -> 0 | R24: ='Input Sheet'!T74 ->  | T24: 12.6 | U24: 1
A25: 152922 | B25: 2014 | C25: Sierra 1500 | D25: 30702 | E25: 292.78 | F25: 1.6 | G25: ='Input Sheet'!I75 -> 0 | H25: ='Input Sheet'!J75 ->  | J25: ='Input Sheet'!L75 -> 0 | K25: ='Input Sheet'!M75 -> 0 | L25: ='Input Sheet'!N75 -> 0 | M25: ='Input Sheet'!O75 ->  | O25: ='Input Sheet'!Q75 -> 0 | P25: ='Input Sheet'!R75 -> 0 | Q25: ='Input Sheet'!S75 -> 0 | R25: ='Input Sheet'!T75 ->  | T25: 15.6 | U25: 1
A26: 152947 | B26: 2012 | C26: Yukon | D26: 64328 | E26: 393.34 | F26: 1.6 | G26: ='Input Sheet'!I76 -> 0 | H26: ='Input Sheet'!J76 ->  | J26: ='Input Sheet'!L76 -> 0 | K26: ='Input Sheet'!M76 -> 0 | L26: ='Input Sheet'!N76 -> 0 | M26: ='Input Sheet'!O76 ->  | O26: ='Input Sheet'!Q76 -> 0 | P26: ='Input Sheet'!R76 -> 0 | Q26: ='Input Sheet'!S76 -> 0 | R26: ='Input Sheet'!T76 ->  | T26: 15.6 | U26: 1
A27: 152949 | B27: 2016 | C27: Yukon XL | D27: 32916 | E27: 22.85 | F27: 0.6 | G27: ='Input Sheet'!I77 -> 0 | H27: ='Input Sheet'!J77 ->  | J27: ='Input Sheet'!L77 -> 0 | K27: ='Input Sheet'!M77 -> 0 | L27: ='Input Sheet'!N77 -> 0 | M27: ='Input Sheet'!O77 ->  | O27: ='Input Sheet'!Q77 -> 0 | P27: ='Input Sheet'!R77 -> 0 | Q27: ='Input Sheet'!S77 -> 0 | R27: ='Input Sheet'!T77 ->  | T27: 12.6 | U27: 1
A28: 152950 | B28: 2009 | C28: Colorado | D28: 92056 | E28: ='Input Sheet'!G78 -> 0 | F28: ='Input Sheet'!H78 -> 0 | G28: ='Input Sheet'!I78 -> 0 | H28: ='Input Sheet'!J78 ->  | J28: ='Input Sheet'!L78 -> 0 | K28: ='Input Sheet'!M78 -> 0 | L28: ='Input Sheet'!N78 -> 0 | M28: ='Input Sheet'!O78 ->  | O28: 195 | P28: 1.5 | Q28: ='Input Sheet'!S78 -> 735 | R28: ='Input Sheet'!T78 -> 32 | S28: 48 | T28: 35 | U28: 1
A29: 152951 | B29: 2012 | C29: Town & Country | D29: 75979 | E29: 22.85 | F29: 0.6 | G29: ='Input Sheet'!I79 -> 0 | H29: ='Input Sheet'!J79 ->  | J29: ='Input Sheet'!L79 -> 0 | K29: ='Input Sheet'!M79 -> 0 | L29: ='Input Sheet'!N79 -> 0 | M29: ='Input Sheet'!O79 ->  | O29: ='Input Sheet'!Q79 -> 0 | P29: ='Input Sheet'!R79 -> 0 | Q29: ='Input Sheet'!S79 -> 0 | R29: ='Input Sheet'!T79 ->  | T29: 12.6 | U29: 1
A30: 152963 | B30: 2014 | C30: Acadia | D30: 55821 | E30: 22.85 | F30: 0.6 | G30: ='Input Sheet'!I80 -> 0 | H30: ='Input Sheet'!J80 ->  | J30: ='Input Sheet'!L80 -> 0 | K30: ='Input Sheet'!M80 -> 0 | L30: ='Input Sheet'!N80 -> 0 | M30: ='Input Sheet'!O80 ->  | O30: ='Input Sheet'!Q80 -> 0 | P30: ='Input Sheet'!R80 -> 0 | Q30: ='Input Sheet'!S80 -> 0 | R30: ='Input Sheet'!T80 ->  | T30: 12.6 | U30: 1
A31: 152973 | B31: 2015 | C31: sierra 1500 | D31: 37437 | E31: ='Input Sheet'!G81 -> 0 | F31: ='Input Sheet'!H81 -> 0 | G31: ='Input Sheet'!I81 -> 0 | H31: ='Input Sheet'!J81 ->  | J31: 112 | K31: 0.3 | L31: ='Input Sheet'!N81 -> 773 | M31: ='Input Sheet'!O81 -> 30 | N31: 9 | O31: ='Input Sheet'!Q81 -> 0 | P31: ='Input Sheet'!R81 -> 0 | Q31: ='Input Sheet'!S81 -> 0 | R31: ='Input Sheet'!T81 ->  | T31: 6 | U31: 1
A32: 152982 | B32: 2011 | C32: Acadia | D32: 115834 | E32: ='Input Sheet'!G82 -> 0 | F32: ='Input Sheet'!H82 -> 0 | G32: ='Input Sheet'!I82 -> 0 | H32: ='Input Sheet'!J82 ->  | J32: 155.21 | K32: 1.1 | L32: ='Input Sheet'!N82 -> 782 | M32: ='Input Sheet'!O82 ->  | O32: ='Input Sheet'!Q82 -> 0 | P32: ='Input Sheet'!R82 -> 0 | Q32: ='Input Sheet'!S82 -> 0 | R32: ='Input Sheet'!T82 ->  | T32: 87.85 | U32: 2
A33: 152983 | B33: 2011 | C33: Acadia | D33: 146372 | E33: 22.85 | F33: 0.6 | G33: ='Input Sheet'!I83 -> 0 | H33: ='Input Sheet'!J83 ->  | J33: ='Input Sheet'!L83 -> 0 | K33: ='Input Sheet'!M83 -> 0 | L33: ='Input Sheet'!N83 -> 0 | M33: ='Input Sheet'!O83 ->  | O33: ='Input Sheet'!Q83 -> 0 | P33: ='Input Sheet'!R83 -> 0 | Q33: ='Input Sheet'!S83 -> 0 | R33: ='Input Sheet'!T83 ->  | T33: 12.6 | U33: 1
A34: 152995 | B34: 2009 | C34: Sierra 2500HD | D34: 62770 | E34: ='Input Sheet'!G84 -> 0 | F34: ='Input Sheet'!H84 -> 0 | G34: ='Input Sheet'!I84 -> 0 | H34: ='Input Sheet'!J84 ->  | J34: 424.06 | K34: 3.3 | L34: ='Input Sheet'!N84 -> 0 | M34: ='Input Sheet'!O84 ->  | O34: ='Input Sheet'!Q84 -> 0 | P34: ='Input Sheet'!R84 -> 0 | Q34: ='Input Sheet'!S84 -> 0 | R34: ='Input Sheet'!T84 ->  | T34: 80.5 | U34: 2
A35: 153009 | B35: 2015 | C35: Sierra 3500 | D35: 24464 | E35: 29.95 | F35: 0.3 | G35: ='Input Sheet'!I85 -> 0 | H35: ='Input Sheet'!J85 ->  | J35: ='Input Sheet'!L85 -> 0 | K35: ='Input Sheet'!M85 -> 0 | L35: ='Input Sheet'!N85 -> 0 | M35: ='Input Sheet'!O85 ->  | O35: ='Input Sheet'!Q85 -> 0 | P35: ='Input Sheet'!R85 -> 0 | Q35: ='Input Sheet'!S85 -> 0 | R35: ='Input Sheet'!T85 ->  | T35: 42.05 | U35: 1
A36: 153010 | B36: 2011 | C36: Terrain | D36: 80389 | E36: 22.85 | F36: 0.6 | G36: ='Input Sheet'!I86 -> 0 | H36: ='Input Sheet'!J86 ->  | J36: ='Input Sheet'!L86 -> 0 | K36: ='Input Sheet'!M86 -> 0 | L36: ='Input Sheet'!N86 -> 0 | M36: ='Input Sheet'!O86 ->  | O36: ='Input Sheet'!Q86 -> 0 | P36: ='Input Sheet'!R86 -> 0 | Q36: ='Input Sheet'!S86 -> 0 | R36: ='Input Sheet'!T86 ->  | T36: 12.6 | U36: 1
A37: 153012 | B37: 2016 | C37: Sierra 2500HD | D37: 92526 | E37: ='Input Sheet'!G87 -> 0 | F37: ='Input Sheet'!H87 -> 0 | G37: ='Input Sheet'!I87 -> 0 | H37: ='Input Sheet'!J87 ->  | J37: 209.14 | K37: 0.9 | L37: ='Input Sheet'!N87 -> 0 | M37: ='Input Sheet'!O87 ->  | O37: ='Input Sheet'!Q87 -> 0 | P37: ='Input Sheet'!R87 -> 0 | Q37: ='Input Sheet'!S87 -> 0 | R37: ='Input Sheet'!T87 ->  | T37: 94.95 | U37: ='Input Sheet'!W87 -> 1
A38: 153013 | B38: 2015 | C38: Sierra 2500HD | D38: 42431 | E38: 121.6 | F38: 0.9 | G38: ='Input Sheet'!I88 -> 0 | H38: ='Input Sheet'!J88 ->  | J38: ='Input Sheet'!L88 -> 0 | K38: ='Input Sheet'!M88 -> 0 | L38: ='Input Sheet'!N88 -> 0 | M38: ='Input Sheet'!O88 ->  | O38: ='Input Sheet'!Q88 -> 0 | P38: ='Input Sheet'!R88 -> 0 | Q38: ='Input Sheet'!S88 -> 0 | R38: ='Input Sheet'!T88 ->  | T38: 32.95 | U38: 1
A39: 153032 | B39: 2015 | C39: Yukon XL | D39: 55352 | E39: ='Input Sheet'!G89 -> 0 | F39: ='Input Sheet'!H89 -> 0 | G39: ='Input Sheet'!I89 -> 0 | H39: ='Input Sheet'!J89 ->  | J39: ='Input Sheet'!L89 -> 0 | K39: ='Input Sheet'!M89 -> 0 | L39: ='Input Sheet'!N89 -> 0 | M39: ='Input Sheet'!O89 ->  | O39: 653.28 | P39: 2.5 | Q39: ='Input Sheet'!S89 -> 0 | R39: ='Input Sheet'!T89 ->  | T39: 78 | U39: 1
A40: 153040 | B40: 2013 | C40: Cruze | D40: 71780 | E40: 631.05 | F40: 1 | G40: ='Input Sheet'!I90 -> 0 | H40: ='Input Sheet'!J90 ->  | J40: ='Input Sheet'!L90 -> 0 | K40: ='Input Sheet'!M90 -> 0 | L40: ='Input Sheet'!N90 -> 0 | M40: ='Input Sheet'!O90 ->  | O40: ='Input Sheet'!Q90 -> 0 | P40: ='Input Sheet'!R90 -> 0 | Q40: ='Input Sheet'!S90 -> 0 | R40: ='Input Sheet'!T90 ->  | T40: 95 | U40: 1
A41: 153057 | B41: 2005 | C41: Silverado 2500 | D41: 197835 | E41: ='Input Sheet'!G91 -> 0 | F41: ='Input Sheet'!H91 -> 0 | G41: ='Input Sheet'!I91 -> 0 | H41: ='Input Sheet'!J91 ->  | J41: ='Input Sheet'!L91 -> 0 | K41: ='Input Sheet'!M91 -> 0 | L41: ='Input Sheet'!N91 -> 0 | M41: ='Input Sheet'!O91 ->  | O41: 599.66 | P41: 2.8 | Q41: ='Input Sheet'!S91 -> 773 | R41: ='Input Sheet'!T91 -> 30 | S41: 84 | T41: 45 | U41: 2
A42: 153060 | B42: 2015 | C42: Sierra 2500HD | D42: 63478 | E42: 360.43 | F42: 1.8 | G42: ='Input Sheet'!I92 -> 0 | H42: ='Input Sheet'!J92 ->  | J42: ='Input Sheet'!L92 -> 0 | K42: ='Input Sheet'!M92 -> 0 | L42: ='Input Sheet'!N92 -> 0 | M42: ='Input Sheet'!O92 ->  | O42: ='Input Sheet'!Q92 -> 0 | P42: ='Input Sheet'!R92 -> 0 | Q42: ='Input Sheet'!S92 -> 0 | R42: ='Input Sheet'!T92 ->  | T42: 46.8 | U42: 2
A43: 153061 | B43: 2015 | C43: Sierra 2500HD | D43: 63574 | E43: ='Input Sheet'!G93 -> 0 | F43: ='Input Sheet'!H93 -> 0 | G43: ='Input Sheet'!I93 -> 0 | H43: ='Input Sheet'!J93 ->  | J43: 939.91 | K43: 2 | L43: ='Input Sheet'!N93 -> 717 | M43: ='Input Sheet'!O93 -> 26 | N43: 52 | O43: ='Input Sheet'!Q93 -> 0 | P43: ='Input Sheet'!R93 -> 0 | Q43: ='Input Sheet'!S93 -> 0 | R43: ='Input Sheet'!T93 ->  | T43: 52 | U43: 3
A44: 153066 | B44: 2015 | C44: Sierra 1500 | D44: 25120 | E44: 224.28 | F44: 1.2 | G44: ='Input Sheet'!I94 -> 0 | H44: ='Input Sheet'!J94 ->  | J44: ='Input Sheet'!L94 -> 0 | K44: ='Input Sheet'!M94 -> 0 | L44: ='Input Sheet'!N94 -> 0 | M44: ='Input Sheet'!O94 ->  | O44: ='Input Sheet'!Q94 -> 0 | P44: ='Input Sheet'!R94 -> 0 | Q44: ='Input Sheet'!S94 -> 0 | R44: ='Input Sheet'!T94 ->  | T44: 87.85 | U44: 2
A45: 153069 | B45: 2011 | C45: Yukon XL | D45: 62393 | E45: 198.71 | F45: 1 | G45: ='Input Sheet'!I95 -> 0 | H45: ='Input Sheet'!J95 ->  | J45: ='Input Sheet'!L95 -> 0 | K45: ='Input Sheet'!M95 -> 0 | L45: ='Input Sheet'!N95 -> 0 | M45: ='Input Sheet'!O95 ->  | O45: ='Input Sheet'!Q95 -> 0 | P45: ='Input Sheet'!R95 -> 0 | Q45: ='Input Sheet'!S95 -> 0 | R45: ='Input Sheet'!T95 ->  | T45: 26 | U45: 1
A46: 153079 | B46: 2012 | C46: Cruze | D46: 150476 | E46: 794.11 | F46: 1 | G46: ='Input Sheet'!I96 -> 0 | H46: ='Input Sheet'!J96 ->  | J46: ='Input Sheet'!L96 -> 0 | K46: ='Input Sheet'!M96 -> 0 | L46: ='Input Sheet'!N96 -> 0 | M46: ='Input Sheet'!O96 ->  | O46: ='Input Sheet'!Q96 -> 0 | P46: ='Input Sheet'!R96 -> 0 | Q46: ='Input Sheet'!S96 -> 0 | R46: ='Input Sheet'!T96 ->  | T46: 95 | U46: 1
A47: 153080 | B47: 2013 | C47: Suburban | D47: 84433 | E47: ='Input Sheet'!G97 -> 0 | F47: ='Input Sheet'!H97 -> 0 | G47: ='Input Sheet'!I97 -> 0 | H47: ='Input Sheet'!J97 ->  | J47: 230.91 | K47: 1.2 | L47: ='Input Sheet'!N97 -> 0 | M47: ='Input Sheet'!O97 ->  | O47: ='Input Sheet'!Q97 -> 0 | P47: ='Input Sheet'!R97 -> 0 | Q47: ='Input Sheet'!S97 -> 0 | R47: ='Input Sheet'!T97 ->  | T47: 25.2 | U47: 2
A48: 153081 | B48: 2005 | C48: Yukon | D48: 198796 | E48: ='Input Sheet'!G98 -> 0 | F48: ='Input Sheet'!H98 -> 0 | G48: ='Input Sheet'!I98 -> 0 | H48: ='Input Sheet'!J98 ->  | J48: ='Input Sheet'!L98 -> 0 | K48: ='Input Sheet'!M98 -> 0 | L48: ='Input Sheet'!N98 -> 0 | M48: ='Input Sheet'!O98 ->  | O48: 622.7 | P48: 1.6 | Q48: ='Input Sheet'!S98 -> 0 | R48: ='Input Sheet'!T98 ->  | T48: 133 | U48: 2
A49: 153089 | B49: 2012 | C49: Acadia | D49: 97424 | E49: 287.2 | F49: 1.3 | G49: ='Input Sheet'!I99 -> 0 | H49: ='Input Sheet'!J99 ->  | J49: ='Input Sheet'!L99 -> 0 | K49: ='Input Sheet'!M99 -> 0 | L49: ='Input Sheet'!N99 -> 0 | M49: ='Input Sheet'!O99 ->  | O49: ='Input Sheet'!Q99 -> 622.7 | P49: ='Input Sheet'!R99 -> 1.6 | Q49: ='Input Sheet'!S99 -> 773 | R49: ='Input Sheet'!T99 -> 30 | S49: 48 | T49: 30,00 | U49: 1
A50: 153095 | B50: 2007 | C50: Sierra 1500 | D50: 104414 | E50: 22.85 | F50: 0.6 | G50: ='Input Sheet'!I100 -> 0 | H50: ='Input Sheet'!J100 ->  | J50: ='Input Sheet'!L100 -> 0 | K50: ='Input Sheet'!M100 -> 0 | L50: ='Input Sheet'!N100 -> 0 | M50: ='Input Sheet'!O100 ->  | O50: ='Input Sheet'!Q100 -> 0 | P50: ='Input Sheet'!R100 -> 0 | Q50: ='Input Sheet'!S100 -> 0 | R50: ='Input Sheet'!T100 ->  | T50: 12.6 | U50: 1
A51: 153128 | B51: 2007 | C51: Envoy | D51: 113072 | E51: 0 | F51: ='Input Sheet'!H101 -> 0 | G51: ='Input Sheet'!I101 -> 0 | H51: ='Input Sheet'!J101 ->  | J51: 220.73 | K51: 1.6 | L51: ='Input Sheet'!N101 -> 0 | M51: ='Input Sheet'!O101 ->  | O51: ='Input Sheet'!Q101 -> 0 | P51: ='Input Sheet'!R101 -> 0 | Q51: ='Input Sheet'!S101 -> 0 | R51: ='Input Sheet'!T101 ->  | T51: 76 | U51: 2
A52: 153131 | B52: 2011 | C52: Acadia | D52: 100097 | E52: ='Input Sheet'!G102 -> 0 | F52: ='Input Sheet'!H102 -> 0 | G52: ='Input Sheet'!I102 -> 0 | H52: ='Input Sheet'!J102 ->  | J52: 543.81 | K52: 2.6 | L52: ='Input Sheet'!N102 -> 757 | M52: ='Input Sheet'!O102 -> 14 | N52: 36.4 | O52: ='Input Sheet'!Q102 -> 0 | P52: ='Input Sheet'!R102 -> 0 | Q52: ='Input Sheet'!S102 -> 0 | R52: ='Input Sheet'!T102 ->  | T52: 70 | U52: 2
A53: 153141 | B53: 2014 | C53: Equinox | D53: 71379 | E53: 112.95 | F53: 1 | G53: ='Input Sheet'!I103 -> 0 | H53: ='Input Sheet'!J103 ->  | J53: ='Input Sheet'!L103 -> 0 | K53: ='Input Sheet'!M103 -> 0 | L53: ='Input Sheet'!N103 -> 0 | M53: ='Input Sheet'!O103 ->  | O53: ='Input Sheet'!Q103 -> 0 | P53: ='Input Sheet'!R103 -> 0 | Q53: ='Input Sheet'!S103 -> 0 | R53: ='Input Sheet'!T103 ->  | T53: 35 | U53: 1
A54: 153152 | B54: 2014 | C54: Terrain | D54: 7101 | E54: 22.85 | F54: 0.6 | G54: ='Input Sheet'!I104 -> 0 | H54: ='Input Sheet'!J104 ->  | J54: ='Input Sheet'!L104 -> 0 | K54: ='Input Sheet'!M104 -> 0 | L54: ='Input Sheet'!N104 -> 0 | M54: ='Input Sheet'!O104 ->  | O54: ='Input Sheet'!Q104 -> 0 | P54: ='Input Sheet'!R104 -> 0 | Q54: ='Input Sheet'!S104 -> 0 | R54: ='Input Sheet'!T104 ->  | T54: 12.6 | U54: 1
A55: 153156 | B55: 2003 | C55: Sierra 1500 | D55: 18170 | E55: 22.85 | F55: 0.6 | G55: ='Input Sheet'!I105 -> 0 | H55: ='Input Sheet'!J105 ->  | J55: ='Input Sheet'!L105 -> 0 | K55: ='Input Sheet'!M105 -> 0 | L55: ='Input Sheet'!N105 -> 0 | M55: ='Input Sheet'!O105 ->  | O55: ='Input Sheet'!Q105 -> 0 | P55: ='Input Sheet'!R105 -> 0 | Q55: ='Input Sheet'!S105 -> 0 | R55: ='Input Sheet'!T105 ->  | T55: 12.6 | U55: 1
A56: RO's 51-100 | D56: Totals | E56: =SUM(E6:E55) -> 4457.09 | F56: =SUM(F6:F55) -> 23.1 | I56: =SUM(I6:I55) ->  | J56: =SUM(J6:J55) -> 4476.2 | K56: =SUM(K6:K55) -> 21.4 | N56: =SUM(N6:N55) ->  | O56: =SUM(O6:O55) -> 10865.96 | P56: =SUM(P6:P55) -> 42.8 | S56: =SUM(S6:S55) ->  | T56: =SUM(T6:T55) -> 3222.43 | U56: =COUNTIF(U5:U55,1) -> 30
A57: Date of Study: | E57: C Labor | J57: M Labor | O57: R Labor | T57: Total Cost of Labor | U57: One Item Repair Order
A58: Study Compiled by | E58: Labor Sales | F58: Flat Rate Hours | G58: Technician Number | H58: Pay Per FRH | I58: Labor Cost | J58: Labor Sales | K58: Flat Rate Hours | L58: Technician Number | M58: Pay Per FRH | N58: Labor Cost | O58: Labor Sales | P58: Flat Rate Hours | Q58: Technician Number | R58: Pay Per FRH | S58: Labor Cost

Sheet Summary Report
C1: Repair Order Analysis Summary Report
E3: Sales in Dollars | G3: FRH's on RO's
I4: Averages | J4: Analysis
C5: Competitive | E5: ='RO Report 1-50'!E56+'RO Report 51-100'!E56 -> 5766.29 | F5: ÷ | G5: ='RO Report 1-50'!F56+'RO Report 51-100'!F56 -> 43 | H5: = | I5: =IF(ISERROR(E5/G5),"",E5/G5) -> 134.0997674 | J5: FRH Average
C6: Maintenance | E6: ='RO Report 1-50'!J56+'RO Report 51-100'!J56 -> 5843.88 | F6: ÷ | G6: ='RO Report 1-50'!K56+'RO Report 51-100'!K56 -> 35.3 | H6: = | I6: =IF(ISERROR(E6/G6),"",E6/G6) -> 165.5490085 | J6: FRH Average
C7: Repair | E7: ='RO Report 1-50'!O56+'RO Report 51-100'!O56 -> 30031.94 | F7: ÷ | G7: ='RO Report 1-50'!P56+'RO Report 51-100'!P56 -> 94.7 | H7: = | I7: =IF(ISERROR(E7/G7),"",E7/G7) -> 317.1271383 | J7: FRH Average
C8: Totals | E8: =SUM(E5:E7) -> 41642.11 | F8: ÷ | G8: =SUM(G5:G7) -> 173 | H8: = | I8: =IF(ISERROR(E8/G8),"",E8/G8) -> 240.7058382 | J8: Customer ELR
H9: Target Labor Rate | I9: 130 | J9: Per FRH
C10: Total Ro's in Sample | E10: 100 | H10: Difference | I10: =IF(ISERROR(I8-I9),"",I8-I9) -> 110.7058382 | J10: Per FRH
C12: Cost of Labor
C13: Total Cost of Labor | E13: ='Input Sheet'!V106 -> 5166.18 | F13: ÷ | G13: Total Sales | H13: = | I13: =IF(ISERROR(E13/E8),"",E13/E8) -> 0.1240614368 | J13: Percent Cost of Sales
C14: Total Cost of Labor | E14: =E13 -> 5166.18 | F14: ÷ | G14: Total FRH's | H14: = | I14: =IF(ISERROR(E14/G8),"",E14/G8) -> 29.86231214 | J14: Cost per FRH
C16: Repair Order Measurements
C17: Total Labor Sales | E17: =E8 -> 41642.11 | F17: ÷ | G17: Total RO's | H17: = | I17: =IF(ISERROR(E17/E10),"",E17/E10) -> 416.4211 | J17: Avg Labor per RO
C18: Total FRH's | E18: =G8 -> 173 | F18: ÷ | G18: Total RO's | H18: = | I18: =IF(ISERROR(E18/E10),"",E18/E10) -> 1.73 | J18: Avg FRH's per RO
C19: Menu Sales | F19: ÷ | G19: Total RO's | H19: = | J19: Percent Menu Sales
C20: Competitive FRH's | E20: =G5 -> 43 | F20: ÷ | G20: Total FRH's | H20: = | I20: =IF(ISERROR(E20/G8),"",(E20/G8)) -> 0.2485549133 | J20: Percent Competitive
C21: Maintenance FRH's | E21: =G6 -> 35.3 | F21: ÷ | G21: Total FRH's | H21: = | I21: =IF(ISERROR(E21/G8),"",(E21/G8)) -> 0.2040462428 | J21: Percent Maintenance
C22: Repair FRH' | E22: =G7 -> 94.7 | F22: ÷ | G22: Total FRH's | H22: = | I22: =IF(ISERROR(E22/G8),"",E22/G8) -> 0.5473988439 | J22: Percent Repair
C23: One item RO's | E23: ='RO Report 1-50'!U56+'RO Report 51-100'!U56 -> 67 | F23: ÷ | G23: Total RO's | H23: = | I23: =IF(ISERROR(E23/E10),"",E23/E10) -> 0.67 | J23: Percent One Item RO
C25: Model Year Analysis
C26: =YEAR(Title!K17)+1 -> 2018 | D26: =YEAR(Title!K17) -> 2017 | E26: =YEAR(Title!K17)-1 -> 2016 | G26: =YEAR(Title!K17)-2 -> 2015 | H26: =YEAR(Title!K17)-3 -> 2014 | J26: =YEAR(Title!K17)-4 -> 2013 | K26: Older | L26: Total
C27: =COUNTIF('Input Sheet'!D6:D105,C26) -> 0 | D27: =COUNTIF('Input Sheet'!D6:D105,D26) -> 0 | E27: =COUNTIF('Input Sheet'!D6:D105,E26) -> 11 | G27: =COUNTIF('Input Sheet'!D6:D105,G26) -> 22 | H27: =COUNTIF('Input Sheet'!D6:D105,H26) -> 9 | J27: =COUNTIF('Input Sheet'!D6:D105,J26) -> 7 | K27: =L27-(SUM(C27:J27)) -> 51 | L27: =DCOUNTA('Input Sheet'!C4:F105,"Year",'Input Sheet'!D4:D105) -> 100
C28: =IF(ISERROR(C27/L27),"",C27/L27) -> 0 | D28: =IF(ISERROR(D27/L27),"",D27/L27) -> 0 | E28: =IF(ISERROR(E27/L27),"",E27/L27) -> 0.11 | G28: =IF(ISERROR(G27/L27),"",G27/L27) -> 0.22 | H28: =IF(ISERROR(H27/L27),"",H27/L27) -> 0.09 | J28: =IF(ISERROR(J27/L27),"",J27/L27) -> 0.07 | K28: =IF(ISERROR(K27/L27),"",K27/L27) -> 0.51
